Workbook

Sheet DatosBasicos (hidden)
A1: AÑO | B1: DEPARTAMENTO | C1: CORTE
A2: 2021 | B2: PUTUMAYO
A3: SI
A4: NO | D4: % DE ICLD CONTRALORIAS DPTALES
A5: E | B5: E | D5: 0.012
A6: 1 | B6: 1 | D6: 0.02
A7: 2 | B7: 2 | D7: 0.025
A8: 3 | B8: 3 | D8: 0.03
A9: 4 | B9: 4 | D9: 0.03
B10: 5
B11: 6

Sheet Departamentos (hidden)
A1: NOMBRE_DEPARTAMENTO | B1: CODIGO_DIVIPOLA_DEPARTAMENTO
A2: AMAZONAS | B2: 91000
A3: ANTIOQUIA | B3: 5000
A4: ARAUCA | B4: 81000
A5: ATLANTICO | B5: 8000
A6: BOLIVAR | B6: 13000
A7: BOYACA | B7: 15000
A8: CALDAS | B8: 17000
A9: CAQUETA | B9: 18000
A10: CASANARE | B10: 85000
A11: CAUCA | B11: 19000
A12: CESAR | B12: 20000
A13: CHOCO | B13: 27000
A14: CORDOBA | B14: 23000
A15: CUNDINAMARCA | B15: 25000
A16: GUAINIA | B16: 94000
A17: GUAJIRA | B17: 44000
A18: GUAVIARE | B18: 95000
A19: HUILA | B19: 41000
A20: MAGDALENA | B20: 47000
A21: META | B21: 50000
A22: NARIÑO | B22: 52000
A23: NORTE DE SANTANDER | B23: 54000
A24: PUTUMAYO | B24: 86000
A25: QUINDIO | B25: 63000
A26: RISARALDA | B26: 66000
A27: SAN ANDRES | B27: 88000
A28: SANTANDER | B28: 68000
A29: SUCRE | B29: 70000
A30: TOLIMA | B30: 73000
A31: VALLE DEL CAUCA | B31: 76000
A32: VAUPES | B32: 97000
A33: VICHADA | B33: 99000

Sheet EntidadesTerritoriales (hidden)
A1: CONCATENACION | B1: DEPARTAMENTO | C1: CODIGO_DIVIPOLA_ENTIDAD | D1: NOMBRE_ENTIDAD | E1: CATEGORIA
A2: =B2&"-"&D2 -> AMAZONAS-DEPARTAMENTO DEL AMAZONAS | B2: AMAZONAS | C2: 91000 | D2: DEPARTAMENTO DEL AMAZONAS | E2: 4
A3: =B3&"-"&D3 -> AMAZONAS-LETICIA | B3: AMAZONAS | C3: 91001 | D3: LETICIA | E3: 5
A4: AMAZONAS-PUERTO NARIÑO | B4: AMAZONAS | C4: 91540 | D4: PUERTO NARIÑO | E4: 6
A5: ANTIOQUIA-ABEJORRAL | B5: ANTIOQUIA | C5: 5002 | D5: ABEJORRAL | E5: 6
A6: ANTIOQUIA-ABRIAQUÍ | B6: ANTIOQUIA | C6: 5004 | D6: ABRIAQUÍ | E6: 6
A7: ANTIOQUIA-ALEJANDRÍA | B7: ANTIOQUIA | C7: 5021 | D7: ALEJANDRÍA | E7: 6
A8: ANTIOQUIA-AMAGÁ | B8: ANTIOQUIA | C8: 5030 | D8: AMAGÁ | E8: 6
A9: ANTIOQUIA-AMALFI | B9: ANTIOQUIA | C9: 5031 | D9: AMALFI | E9: 6
A10: ANTIOQUIA-ANDES | B10: ANTIOQUIA | C10: 5034 | D10: ANDES | E10: 6
A11: ANTIOQUIA-ANGELÓPOLIS | B11: ANTIOQUIA | C11: 5036 | D11: ANGELÓPOLIS | E11: 6
A12: ANTIOQUIA-ANGOSTURA | B12: ANTIOQUIA | C12: 5038 | D12: ANGOSTURA | E12: 6
A13: ANTIOQUIA-ANORÍ | B13: ANTIOQUIA | C13: 5040 | D13: ANORÍ | E13: 6
A14: ANTIOQUIA-ANZÁ | B14: ANTIOQUIA | C14: 5044 | D14: ANZÁ | E14: 6
A15: ANTIOQUIA-APARTADÓ | B15: ANTIOQUIA | C15: 5045 | D15: APARTADÓ | E15: 3
A16: ANTIOQUIA-ARBOLETES | B16: ANTIOQUIA | C16: 5051 | D16: ARBOLETES | E16: 6
A17: ANTIOQUIA-ARGELIA | B17: ANTIOQUIA | C17: 5055 | D17: ARGELIA | E17: 6
A18: ANTIOQUIA-ARMENIA | B18: ANTIOQUIA | C18: 5059 | D18: ARMENIA | E18: 6
A19: ANTIOQUIA-BARBOSA | B19: ANTIOQUIA | C19: 5079 | D19: BARBOSA | E19: 4
A20: ANTIOQUIA-BELLO | B20: ANTIOQUIA | C20: 5088 | D20: BELLO | E20: 1
A21: ANTIOQUIA-BELMIRA | B21: ANTIOQUIA | C21: 5086 | D21: BELMIRA | E21: 6
A22: ANTIOQUIA-BETANIA | B22: ANTIOQUIA | C22: 5091 | D22: BETANIA | E22: 6
A23: ANTIOQUIA-BETULIA | B23: ANTIOQUIA | C23: 5093 | D23: BETULIA | E23: 6
A24: ANTIOQUIA-BRICEÑO | B24: ANTIOQUIA | C24: 5107 | D24: BRICEÑO | E24: 6
A25: ANTIOQUIA-BURITICÁ | B25: ANTIOQUIA | C25: 5113 | D25: BURITICÁ | E25: 6
A26: ANTIOQUIA-CÁCERES | B26: ANTIOQUIA | C26: 5120 | D26: CÁCERES | E26: 6
A27: ANTIOQUIA-CAICEDO | B27: ANTIOQUIA | C27: 5125 | D27: CAICEDO | E27: 6
A28: ANTIOQUIA-CALDAS | B28: ANTIOQUIA | C28: 5129 | D28: CALDAS | E28: 3
A29: ANTIOQUIA-CAMPAMENTO | B29: ANTIOQUIA | C29: 5134 | D29: CAMPAMENTO | E29: 6
A30: ANTIOQUIA-CAÑASGORDAS | B30: ANTIOQUIA | C30: 5138 | D30: CAÑASGORDAS | E30: 6
A31: ANTIOQUIA-CARACOLÍ | B31: ANTIOQUIA | C31: 5142 | D31: CARACOLÍ | E31: 6
A32: ANTIOQUIA-CARAMANTA | B32: ANTIOQUIA | C32: 5145 | D32: CARAMANTA | E32: 6
A33: ANTIOQUIA-CAREPA | B33: ANTIOQUIA | C33: 5147 | D33: CAREPA | E33: 6
A34: ANTIOQUIA-CAROLINA DEL PRINCIPE | B34: ANTIOQUIA | C34: 5150 | D34: CAROLINA DEL PRINCIPE | E34: 6
A35: ANTIOQUIA-CAUCASIA | B35: ANTIOQUIA | C35: 5154 | D35: CAUCASIA | E35: 5
A36: ANTIOQUIA-CHIGORODÓ | B36: ANTIOQUIA | C36: 5172 | D36: CHIGORODÓ | E36: 6
A37: ANTIOQUIA-CISNEROS | B37: ANTIOQUIA | C37: 5190 | D37: CISNEROS | E37: 6
A38: ANTIOQUIA-CIUDAD BOLIVAR | B38: ANTIOQUIA | C38: 5101 | D38: CIUDAD BOLIVAR | E38: 6
A39: ANTIOQUIA-COCORNÁ | B39: ANTIOQUIA | C39: 5197 | D39: COCORNÁ | E39: 6
A40: ANTIOQUIA-CONCEPCIÓN | B40: ANTIOQUIA | C40: 5206 | D40: CONCEPCIÓN | E40: 6
A41: ANTIOQUIA-CONCORDIA | B41: ANTIOQUIA | C41: 5209 | D41: CONCORDIA | E41: 6
A42: ANTIOQUIA-COPACABANA | B42: ANTIOQUIA | C42: 5212 | D42: COPACABANA | E42: 3
A43: ANTIOQUIA-DABEIBA | B43: ANTIOQUIA | C43: 5234 | D43: DABEIBA | E43: 6
A44: ANTIOQUIA-DEPARTAMENTO DE ANTIOQUIA | B44: ANTIOQUIA | C44: 5000 | D44: DEPARTAMENTO DE ANTIOQUIA | E44: ESPECIAL
A45: ANTIOQUIA-DON MATÍAS | B45: ANTIOQUIA | C45: 5237 | D45: DON MATÍAS | E45: 6
A46: ANTIOQUIA-EBÉJICO | B46: ANTIOQUIA | C46: 5240 | D46: EBÉJICO | E46: 6
A47: ANTIOQUIA-EL BAGRE | B47: ANTIOQUIA | C47: 5250 | D47: EL BAGRE | E47: 5
A48: ANTIOQUIA-EL CARMEN DE VIBORAL | B48: ANTIOQUIA | C48: 5148 | D48: EL CARMEN DE VIBORAL | E48: 3
A49: ANTIOQUIA-EL PEÑOL | B49: ANTIOQUIA | C49: 5541 | D49: EL PEÑOL | E49: 6
A50: ANTIOQUIA-EL RETIRO | B50: ANTIOQUIA | C50: 5607 | D50: EL RETIRO | E50: 3
A51: ANTIOQUIA-ENTRERRIOS | B51: ANTIOQUIA | C51: 5264 | D51: ENTRERRIOS | E51: 6
A52: ANTIOQUIA-ENVIGADO | B52: ANTIOQUIA | C52: 5266 | D52: ENVIGADO | E52: 1
A53: ANTIOQUIA-FREDONIA | B53: ANTIOQUIA | C53: 5282 | D53: FREDONIA | E53: 6
A54: ANTIOQUIA-FRONTINO | B54: ANTIOQUIA | C54: 5284 | D54: FRONTINO | E54: 6
A55: ANTIOQUIA-GIRALDO | B55: ANTIOQUIA | C55: 5306 | D55: GIRALDO | E55: 6
A56: ANTIOQUIA-GIRARDOTA | B56: ANTIOQUIA | C56: 5308 | D56: GIRARDOTA | E56: 3
A57: ANTIOQUIA-GÓMEZ PLATA | B57: ANTIOQUIA | C57: 5310 | D57: GÓMEZ PLATA | E57: 6
A58: ANTIOQUIA-GRANADA | B58: ANTIOQUIA | C58: 5313 | D58: GRANADA | E58: 6
A59: ANTIOQUIA-GUADALUPE | B59: ANTIOQUIA | C59: 5315 | D59: GUADALUPE | E59: 6
A60: ANTIOQUIA-GUARNE | B60: ANTIOQUIA | C60: 5318 | D60: GUARNE | E60: 3
A61: ANTIOQUIA-GUATAPÉ | B61: ANTIOQUIA | C61: 5321 | D61: GUATAPÉ | E61: 6
A62: ANTIOQUIA-HELICONIA | B62: ANTIOQUIA | C62: 5347 | D62: HELICONIA | E62: 6
A63: ANTIOQUIA-HISPANIA | B63: ANTIOQUIA | C63: 5353 | D63: HISPANIA | E63: 6
A64: ANTIOQUIA-ITAGÜÍ | B64: ANTIOQUIA | C64: 5360 | D64: ITAGÜÍ | E64: 1
A65: ANTIOQUIA-ITUANGO | B65: ANTIOQUIA | C65: 5361 | D65: ITUANGO | E65: 6
A66: ANTIOQUIA-JARDÍN | B66: ANTIOQUIA | C66: 5364 | D66: JARDÍN | E66: 6
A67: =B67&"-"&D67 -> ANTIOQUIA-JERICÓ | B67: ANTIOQUIA | C67: 5368 | D67: JERICÓ | E67: 6
A68: ANTIOQUIA-LA CEJA DEL TAMBO | B68: ANTIOQUIA | C68: 5376 | D68: LA CEJA DEL TAMBO | E68: 3
A69: ANTIOQUIA-LA ESTRELLA | B69: ANTIOQUIA | C69: 5380 | D69: LA ESTRELLA | E69: 2
A70: ANTIOQUIA-LA PINTADA | B70: ANTIOQUIA | C70: 5390 | D70: LA PINTADA | E70: 6
A71: ANTIOQUIA-LA UNIÓN | B71: ANTIOQUIA | C71: 5400 | D71: LA UNIÓN | E71: 6
A72: ANTIOQUIA-LIBORINA | B72: ANTIOQUIA | C72: 5411 | D72: LIBORINA | E72: 6
A73: ANTIOQUIA-MACEO | B73: ANTIOQUIA | C73: 5425 | D73: MACEO | E73: 6
A74: ANTIOQUIA-MARINILLA | B74: ANTIOQUIA | C74: 5440 | D74: MARINILLA | E74: 4
A75: ANTIOQUIA-MEDELLÍN | B75: ANTIOQUIA | C75: 5001 | D75: MEDELLÍN | E75: ESPECIAL
A76: ANTIOQUIA-MONTEBELLO | B76: ANTIOQUIA | C76: 5467 | D76: MONTEBELLO | E76: 6
A77: ANTIOQUIA-MURINDÓ | B77: ANTIOQUIA | C77: 5475 | D77: MURINDÓ | E77: 6
A78: ANTIOQUIA-MUTATÁ | B78: ANTIOQUIA | C78: 5480 | D78: MUTATÁ | E78: 6
A79: ANTIOQUIA-NARIÑO | B79: ANTIOQUIA | C79: 5483 | D79: NARIÑO | E79: 6
A80: ANTIOQUIA-NECHÍ | B80: ANTIOQUIA | C80: 5495 | D80: NECHÍ | E80: 6
A81: ANTIOQUIA-NECOCLÍ | B81: ANTIOQUIA | C81: 5490 | D81: NECOCLÍ | E81: 6
A82: ANTIOQUIA-OLAYA | B82: ANTIOQUIA | C82: 5501 | D82: OLAYA | E82: 6
A83: ANTIOQUIA-PEQUE | B83: ANTIOQUIA | C83: 5543 | D83: PEQUE | E83: 6
A84: ANTIOQUIA-PUEBLORRICO | B84: ANTIOQUIA | C84: 5576 | D84: PUEBLORRICO | E84: 6
A85: ANTIOQUIA-PUERTO BERRÍO | B85: ANTIOQUIA | C85: 5579 | D85: PUERTO BERRÍO | E85: 6
A86: ANTIOQUIA-PUERTO NARE (LA MAGDALENA) | B86: ANTIOQUIA | C86: 5585 | D86: PUERTO NARE (LA MAGDALENA) | E86: 6
A87: ANTIOQUIA-PUERTO TRIUNFO | B87: ANTIOQUIA | C87: 5591 | D87: PUERTO TRIUNFO | E87: 6
A88: ANTIOQUIA-REMEDIOS | B88: ANTIOQUIA | C88: 5604 | D88: REMEDIOS | E88: 5
A89: ANTIOQUIA-RIONEGRO | B89: ANTIOQUIA | C89: 5615 | D89: RIONEGRO | E89: 1
A90: ANTIOQUIA-SABANALARGA | B90: ANTIOQUIA | C90: 5628 | D90: SABANALARGA | E90: 6
A91: ANTIOQUIA-SABANETA | B91: ANTIOQUIA | C91: 5631 | D91: SABANETA | E91: 1
A92: ANTIOQUIA-SALGAR | B92: ANTIOQUIA | C92: 5642 | D92: SALGAR | E92: 6
A93: ANTIOQUIA-SAN ANDRÉS DE CUERQUIA | B93: ANTIOQUIA | C93: 5647 | D93: SAN ANDRÉS DE CUERQUIA | E93: 6
A94: ANTIOQUIA-SAN CARLOS | B94: ANTIOQUIA | C94: 5649 | D94: SAN CARLOS | E94: 6
A95: ANTIOQUIA-SAN FRANCISCO | B95: ANTIOQUIA | C95: 5652 | D95: SAN FRANCISCO | E95: 6
A96: ANTIOQUIA-SAN JERÓNIMO | B96: ANTIOQUIA | C96: 5656 | D96: SAN JERÓNIMO | E96: 6
A97: ANTIOQUIA-SAN JOSÉ DE LA MONTAÑA | B97: ANTIOQUIA | C97: 5658 | D97: SAN JOSÉ DE LA MONTAÑA | E97: 6
A98: ANTIOQUIA-SAN JUAN DE URABÁ | B98: ANTIOQUIA | C98: 5659 | D98: SAN JUAN DE URABÁ | E98: 6
A99: ANTIOQUIA-SAN LUIS | B99: ANTIOQUIA | C99: 5660 | D99: SAN LUIS | E99: 6
A100: ANTIOQUIA-SAN PEDRO DE LOS MILAGROS | B100: ANTIOQUIA | C100: 5664 | D100: SAN PEDRO DE LOS MILAGROS | E100: 6
A101: ANTIOQUIA-SAN PEDRO DE URABA | B101: ANTIOQUIA | C101: 5665 | D101: SAN PEDRO DE URABA | E101: 6
A102: ANTIOQUIA-SAN RAFAEL | B102: ANTIOQUIA | C102: 5667 | D102: SAN RAFAEL | E102: 6
A103: ANTIOQUIA-SAN ROQUE | B103: ANTIOQUIA | C103: 5670 | D103: SAN ROQUE | E103: 6
A104: ANTIOQUIA-SAN VICENTE | B104: ANTIOQUIA | C104: 5674 | D104: SAN VICENTE | E104: 6
A105: ANTIOQUIA-SANTA BÁRBARA | B105: ANTIOQUIA | C105: 5679 | D105: SANTA BÁRBARA | E105: 6
A106: ANTIOQUIA-SANTA ROSA DE OSOS | B106: ANTIOQUIA | C106: 5686 | D106: SANTA ROSA DE OSOS | E106: 5
A107: ANTIOQUIA-SANTAFE DE ANTIOQUIA | B107: ANTIOQUIA | C107: 5042 | D107: SANTAFE DE ANTIOQUIA | E107: 5
A108: ANTIOQUIA-SANTO DOMINGO | B108: ANTIOQUIA | C108: 5690 | D108: SANTO DOMINGO | E108: 6
A109: ANTIOQUIA-SANTUARIO | B109: ANTIOQUIA | C109: 5697 | D109: SANTUARIO | E109: 6
A110: ANTIOQUIA-SEGOVIA | B110: ANTIOQUIA | C110: 5736 | D110: SEGOVIA | E110: 4
A111: ANTIOQUIA-SONSÓN | B111: ANTIOQUIA | C111: 5756 | D111: SONSÓN | E111: 5
A112: ANTIOQUIA-SOPETRÁN | B112: ANTIOQUIA | C112: 5761 | D112: SOPETRÁN | E112: 6
A113: ANTIOQUIA-TÁMESIS | B113: ANTIOQUIA | C113: 5789 | D113: TÁMESIS | E113: 6
A114: ANTIOQUIA-TARAZÁ | B114: ANTIOQUIA | C114: 5790 | D114: TARAZÁ | E114: 6
A115: ANTIOQUIA-TARSO | B115: ANTIOQUIA | C115: 5792 | D115: TARSO | E115: 6
A116: ANTIOQUIA-TITIRIBÍ | B116: ANTIOQUIA | C116: 5809 | D116: TITIRIBÍ | E116: 6
A117: ANTIOQUIA-TOLEDO | B117: ANTIOQUIA | C117: 5819 | D117: TOLEDO | E117: 6
A118: ANTIOQUIA-TURBO | B118: ANTIOQUIA | C118: 5837 | D118: TURBO | E118: 5
A119: ANTIOQUIA-URAMITA | B119: ANTIOQUIA | C119: 5842 | D119: URAMITA | E119: 6
A120: ANTIOQUIA-URRAO | B120: ANTIOQUIA | C120: 5847 | D120: URRAO | E120: 6
A121: ANTIOQUIA-VALDIVIA | B121: ANTIOQUIA | C121: 5854 | D121: VALDIVIA | E121: 6
A122: ANTIOQUIA-VALPARAÍSO | B122: ANTIOQUIA | C122: 5856 | D122: VALPARAÍSO | E122: 6
A123: ANTIOQUIA-VEGACHÍ | B123: ANTIOQUIA | C123: 5858 | D123: VEGACHÍ | E123: 6
A124: ANTIOQUIA-VENECIA | B124: ANTIOQUIA | C124: 5861 | D124: VENECIA | E124: 6
A125: ANTIOQUIA-VIGÍA DEL FUERTE | B125: ANTIOQUIA | C125: 5873 | D125: VIGÍA DEL FUERTE | E125: 6
A126: ANTIOQUIA-YALÍ | B126: ANTIOQUIA | C126: 5885 | D126: YALÍ | E126: 6
A127: ANTIOQUIA-YARUMAL | B127: ANTIOQUIA | C127: 5887 | D127: YARUMAL | E127: 6
A128: ANTIOQUIA-YOLOMBÓ | B128: ANTIOQUIA | C128: 5890 | D128: YOLOMBÓ | E128: 6
A129: ANTIOQUIA-YONDÓ (CASABE) | B129: ANTIOQUIA | C129: 5893 | D129: YONDÓ (CASABE) | E129: 5
A130: ANTIOQUIA-ZARAGOZA | B130: ANTIOQUIA | C130: 5895 | D130: ZARAGOZA | E130: 6
A131: =B131&"-"&D131 -> ARAUCA-ARAUCA | B131: ARAUCA | C131: 81001 | D131: ARAUCA | E131: 4
A132: ARAUCA-ARAUQUITA | B132: ARAUCA | C132: 81065 | D132: ARAUQUITA | E132: 6
A133: ARAUCA-CRAVO NORTE | B133: ARAUCA | C133: 81220 | D133: CRAVO NORTE | E133: 6
A134: ARAUCA-DEPARTAMENTO DEL ARAUCA | B134: ARAUCA | C134: 81000 | D134: DEPARTAMENTO DEL ARAUCA | E134: 4
A135: ARAUCA-FORTUL | B135: ARAUCA | C135: 81300 | D135: FORTUL | E135: 6
A136: ARAUCA-PUERTO RONDÓN | B136: ARAUCA | C136: 81591 | D136: PUERTO RONDÓN | E136: 6
A137: ARAUCA-SARAVENA | B137: ARAUCA | C137: 81736 | D137: SARAVENA | E137: 6
A138: ARAUCA-TAME | B138: ARAUCA | C138: 81794 | D138: TAME | E138: 6
A139: ATLANTICO-BARANOA | B139: ATLANTICO | C139: 8078 | D139: BARANOA | E139: 6
A140: ATLANTICO-BARRANQUILLA, DISTRITO ESPECIAL, INDUSTRIAL Y PORTUARIO | B140: ATLANTICO | C140: 8001 | D140: BARRANQUILLA, DISTRITO ESPECIAL, INDUSTRIAL Y PORTUARIO | E140: ESPECIAL
A141: ATLANTICO-CAMPO DE LA CRUZ | B141: ATLANTICO | C141: 8137 | D141: CAMPO DE LA CRUZ | E141: 6
A142: ATLANTICO-CANDELARIA | B142: ATLANTICO | C142: 8141 | D142: CANDELARIA | E142: 6
A143: ATLANTICO-DEPARTAMENTO DEL ATLANTICO | B143: ATLANTICO | C143: 8000 | D143: DEPARTAMENTO DEL ATLANTICO | E143: 1
A144: ATLANTICO-GALAPA | B144: ATLANTICO | C144: 8296 | D144: GALAPA | E144: 5
A145: ATLANTICO-JUAN DE ACOSTA | B145: ATLANTICO | C145: 8372 | D145: JUAN DE ACOSTA | E145: 6
A146: ATLANTICO-LURUACO | B146: ATLANTICO | C146: 8421 | D146: LURUACO | E146: 6
A147: ATLANTICO-MALAMBO | B147: ATLANTICO | C147: 8433 | D147: MALAMBO | E147: 3
A148: ATLANTICO-MANATÍ | B148: ATLANTICO | C148: 8436 | D148: MANATÍ | E148: 6
A149: ATLANTICO-PALMAR DE VARELA | B149: ATLANTICO | C149: 8520 | D149: PALMAR DE VARELA | E149: 6
A150: ATLANTICO-PIOJÓ | B150: ATLANTICO | C150: 8549 | D150: PIOJÓ | E150: 6
A151: ATLANTICO-POLONUEVO | B151: ATLANTICO | C151: 8558 | D151: POLONUEVO | E151: 6
A152: ATLANTICO-PONEDERA | B152: ATLANTICO | C152: 8560 | D152: PONEDERA | E152: 6
A153: ATLANTICO-PUERTO COLOMBIA | B153: ATLANTICO | C153: 8573 | D153: PUERTO COLOMBIA | E153: 3
A154: ATLANTICO-REPELÓN | B154: ATLANTICO | C154: 8606 | D154: REPELÓN | E154: 6
A155: ATLANTICO-SABANAGRANDE | B155: ATLANTICO | C155: 8634 | D155: SABANAGRANDE | E155: 6
A156: ATLANTICO-SABANALARGA | B156: ATLANTICO | C156: 8638 | D156: SABANALARGA | E156: 6
A157: ATLANTICO-SANTA LUCÍA | B157: ATLANTICO | C157: 8675 | D157: SANTA LUCÍA | E157: 6
A158: ATLANTICO-SANTO TOMAS | B158: ATLANTICO | C158: 8685 | D158: SANTO TOMAS | E158: 6
A159: ATLANTICO-SOLEDAD | B159: ATLANTICO | C159: 8758 | D159: SOLEDAD | E159: 2
A160: ATLANTICO-SUAN | B160: ATLANTICO | C160: 8770 | D160: SUAN | E160: 6
A161: ATLANTICO-TUBARÁ | B161: ATLANTICO | C161: 8832 | D161: TUBARÁ | E161: 6
A162: ATLANTICO-USIACURÍ | B162: ATLANTICO | C162: 8849 | D162: USIACURÍ | E162: 6
A163: BOLIVAR-ACHÍ | B163: BOLIVAR | C163: 13006 | D163: ACHÍ | E163: 6
A164: BOLIVAR-ALTO DEL ROSARIO | B164: BOLIVAR | C164: 13030 | D164: ALTO DEL ROSARIO | E164: 6
A165: BOLIVAR-ARENAL | B165: BOLIVAR | C165: 13042 | D165: ARENAL | E165: 6
A166: BOLIVAR-ARJONA | B166: BOLIVAR | C166: 13052 | D166: ARJONA | E166: 6
A167: BOLIVAR-ARROYOHONDO | B167: BOLIVAR | C167: 13062 | D167: ARROYOHONDO | E167: 6
A168: BOLIVAR-BARRANCO DE LOBA | B168: BOLIVAR | C168: 13074 | D168: BARRANCO DE LOBA | E168: 6
A169: BOLIVAR-CALAMAR | B169: BOLIVAR | C169: 13140 | D169: CALAMAR | E169: 6
A170: BOLIVAR-CANTAGALLO | B170: BOLIVAR | C170: 13160 | D170: CANTAGALLO | E170: 6
A171: BOLIVAR-CARTAGENA DE INDIAS, DISTRITO TURISTICO Y CULTURAL | B171: BOLIVAR | C171: 13001 | D171: CARTAGENA DE INDIAS, DISTRITO TURISTICO Y CULTURAL | E171: ESPECIAL
A172: BOLIVAR-CICUCO | B172: BOLIVAR | C172: 13188 | D172: CICUCO | E172: 6
A173: BOLIVAR-CLEMENCIA | B173: BOLIVAR | C173: 13222 | D173: CLEMENCIA | E173: 6
A174: BOLIVAR-CÓRDOBA | B174: BOLIVAR | C174: 13212 | D174: CÓRDOBA | E174: 6
A175: BOLIVAR-DEPARTAMENTO DE BOLIVAR | B175: BOLIVAR | C175: 13000 | D175: DEPARTAMENTO DE BOLIVAR | E175: 1
A176: BOLIVAR-EL CARMEN DE BOLIVAR | B176: BOLIVAR | C176: 13244 | D176: EL CARMEN DE BOLIVAR | E176: 6
A177: BOLIVAR-EL GUAMO | B177: BOLIVAR | C177: 13248 | D177: EL GUAMO | E177: 6
A178: BOLIVAR-EL PEÑON | B178: BOLIVAR | C178: 13268 | D178: EL PEÑON | E178: 6
A179: BOLIVAR-HATILLO DE LOBA | B179: BOLIVAR | C179: 13300 | D179: HATILLO DE LOBA | E179: 6
A180: BOLIVAR-MAGANGUÉ | B180: BOLIVAR | C180: 13430 | D180: MAGANGUÉ | E180: 5
A181: BOLIVAR-MAHATES | B181: BOLIVAR | C181: 13433 | D181: MAHATES | E181: 6
A182: BOLIVAR-MARGARITA | B182: BOLIVAR | C182: 13440 | D182: MARGARITA | E182: 6
A183: BOLIVAR-MARIA LA BAJA | B183: BOLIVAR | C183: 13442 | D183: MARIA LA BAJA | E183: 6
A184: BOLIVAR-MONTECRISTO | B184: BOLIVAR | C184: 13458 | D184: MONTECRISTO | E184: 6
A185: BOLIVAR-MORALES | B185: BOLIVAR | C185: 13473 | D185: MORALES | E185: 6
A186: BOLIVAR-NOROSI | B186: BOLIVAR | C186: 13490 | D186: NOROSI | E186: 6
A187: BOLIVAR-PINILLOS | B187: BOLIVAR | C187: 13549 | D187: PINILLOS | E187: 6
A188: BOLIVAR-REGIDOR | B188: BOLIVAR | C188: 13580 | D188: REGIDOR | E188: 6
A189: BOLIVAR-RIOVIEJO | B189: BOLIVAR | C189: 13600 | D189: RIOVIEJO | E189: 6
A190: BOLIVAR-SAN CRISTÓBAL | B190: BOLIVAR | C190: 13620 | D190: SAN CRISTÓBAL | E190: 6
A191: BOLIVAR-SAN ESTANISLAO | B191: BOLIVAR | C191: 13647 | D191: SAN ESTANISLAO | E191: 6
A192: BOLIVAR-SAN FERNANDO | B192: BOLIVAR | C192: 13650 | D192: SAN FERNANDO | E192: 6
A193: BOLIVAR-SAN JACINTO | B193: BOLIVAR | C193: 13654 | D193: SAN JACINTO | E193: 6
A194: BOLIVAR-SAN JACINTO DEL CAUCA | B194: BOLIVAR | C194: 13655 | D194: SAN JACINTO DEL CAUCA | E194: 6
A195: =B195&"-"&D195 -> BOLIVAR-SAN JUAN NEPOMUCENO | B195: BOLIVAR | C195: 13657 | D195: SAN JUAN NEPOMUCENO | E195: 6
A196: BOLIVAR-SAN MARTÍN DE LOBA | B196: BOLIVAR | C196: 13667 | D196: SAN MARTÍN DE LOBA | E196: 6
A197: BOLIVAR-SAN PABLO | B197: BOLIVAR | C197: 13670 | D197: SAN PABLO | E197: 6
A198: BOLIVAR-SANTA CATALINA | B198: BOLIVAR | C198: 13673 | D198: SANTA CATALINA | E198: 6
A199: BOLIVAR-SANTA CRUZ DE MOMPÓX | B199: BOLIVAR | C199: 13468 | D199: SANTA CRUZ DE MOMPÓX | E199: 6
A200: BOLIVAR-SANTA ROSA DEL SUR | B200: BOLIVAR | C200: 13688 | D200: SANTA ROSA DEL SUR | E200: 6
... 934 more rows

Sheet DAF_BalanceFinanciero (hidden)
A1: CONCATENACION | B1: DEPARTAMENTO | C1: CODIGO_DIVIPOLA_ENTIDAD | D1: NOMBRE_ENTIDAD | E1: ORDEN | F1: CODIGO_CONCEPTO_BF | G1: NOMBRE_CONCEPTO_BF | H1: ="TOTAL_"&DatosBasicos!A2-2 -> TOTAL_2019 | I1: ="TOTAL_"&DatosBasicos!A2-1 -> TOTAL_2020
A2: =C2&"-"&F2 -> 86000-BF_1 | B2: PUTUMAYO | C2: 86000 | D2: DEPARTAMENTO DEL PUTUMAYO | E2: 1 | F2: BF_1 | G2: INGRESOS TOTALES | H2: 426318.1535 | I2: 455805.5398
A3: 86000-BF_1.1 | B3: PUTUMAYO | C3: 86000 | D3: DEPARTAMENTO DEL PUTUMAYO | E3: 2 | F3: BF_1.1 | G3: INGRESOS CORRIENTES | H3: 377573.1426 | I3: 423750.615
A4: 86000-BF_1.1.1 | B4: PUTUMAYO | C4: 86000 | D4: DEPARTAMENTO DEL PUTUMAYO | E4: 3 | F4: BF_1.1.1 | G4: TRIBUTARIOS | H4: 43139.56913 | I4: 43045.51889
A5: 86000-BF_1.1.1.1 | B5: PUTUMAYO | C5: 86000 | D5: DEPARTAMENTO DEL PUTUMAYO | E5: 4 | F5: BF_1.1.1.1 | G5: Vehículos Automotores | H5: 914.9438 | I5: 1164.0651
A6: 86000-BF_1.1.1.4 | B6: PUTUMAYO | C6: 86000 | D6: DEPARTAMENTO DEL PUTUMAYO | E6: 7 | F6: BF_1.1.1.4 | G6: Registro y Anotación | H6: 1594.100832 | I6: 1471.680396
A7: 86000-BF_1.1.1.5 | B7: PUTUMAYO | C7: 86000 | D7: DEPARTAMENTO DEL PUTUMAYO | E7: 8 | F7: BF_1.1.1.5 | G7: Licores | H7: 575.907911 | I7: 657.541601
A8: 86000-BF_1.1.1.6 | B8: PUTUMAYO | C8: 86000 | D8: DEPARTAMENTO DEL PUTUMAYO | E8: 9 | F8: BF_1.1.1.6 | G8: Cerveza | H8: 17620.64559 | I8: 16366.0071
A9: 86000-BF_1.1.1.7 | B9: PUTUMAYO | C9: 86000 | D9: DEPARTAMENTO DEL PUTUMAYO | E9: 10 | F9: BF_1.1.1.7 | G9: Cigarrillos y Tabaco | H9: 7508.84278 | I9: 6837.689805
A10: 86000-BF_1.1.1.8 | B10: PUTUMAYO | C10: 86000 | D10: DEPARTAMENTO DEL PUTUMAYO | E10: 11 | F10: BF_1.1.1.8 | G10: Sobretasa Consumo Gasolina Motor | H10: 1929.609 | I10: 2185.295
A11: 86000-BF_1.1.1.9 | B11: PUTUMAYO | C11: 86000 | D11: DEPARTAMENTO DEL PUTUMAYO | E11: 12 | F11: BF_1.1.1.9 | G11: Estampillas | H11: 10035.54842 | I11: 12005.4014
A12: 86000-BF_1.1.1.12 | B12: PUTUMAYO | C12: 86000 | D12: DEPARTAMENTO DEL PUTUMAYO | E12: 15 | F12: BF_1.1.1.12 | G12: Otros Ingresos Tributarios | H12: 2959.970794 | I12: 2357.838487
A13: 86000-BF_1.1.2 | B13: PUTUMAYO | C13: 86000 | D13: DEPARTAMENTO DEL PUTUMAYO | E13: 16 | F13: BF_1.1.2 | G13: NO TRIBUTARIOS | H13: 11262.43638 | I13: 12072.20386
A14: 86000-BF_1.1.2.1 | B14: PUTUMAYO | C14: 86000 | D14: DEPARTAMENTO DEL PUTUMAYO | E14: 17 | F14: BF_1.1.2.1 | G14: Ingresos de la Propiedad: Tasas, Derechos, Multas y Sanciones | H14: 10413.00253 | I14: 11355.99237
A15: 86000-BF_1.1.2.2 | B15: PUTUMAYO | C15: 86000 | D15: DEPARTAMENTO DEL PUTUMAYO | E15: 18 | F15: BF_1.1.2.2 | G15: Otros No Tributarios | H15: 849.433853 | I15: 716.211498
A16: 86000-BF_1.1.3 | B16: PUTUMAYO | C16: 86000 | D16: DEPARTAMENTO DEL PUTUMAYO | E16: 19 | F16: BF_1.1.3 | G16: TRANSFERENCIAS | H16: 323171.1371 | I16: 368632.8922
A17: 86000-BF_1.1.3.1 | B17: PUTUMAYO | C17: 86000 | D17: DEPARTAMENTO DEL PUTUMAYO | E17: 20 | F17: BF_1.1.3.1 | G17: Transferencias Para Funcionamiento | H17: 19561.63596 | I17: 29924.55077
A18: 86000-BF_1.1.3.1.1 | B18: PUTUMAYO | C18: 86000 | D18: DEPARTAMENTO DEL PUTUMAYO | E18: 21 | F18: BF_1.1.3.1.1 | G18: Del Nivel Nacional | H18: 19010.14106 | I18: 29477.09776
A19: 86000-BF_1.1.3.1.1.2 | B19: PUTUMAYO | C19: 86000 | D19: DEPARTAMENTO DEL PUTUMAYO | E19: 23 | F19: BF_1.1.3.1.1.2 | G19: Otras Transferencias de la Nación | H19: 19010.14106 | I19: 29477.09776
A20: 86000-BF_1.1.3.1.3 | B20: PUTUMAYO | C20: 86000 | D20: DEPARTAMENTO DEL PUTUMAYO | E20: 27 | F20: BF_1.1.3.1.3 | G20: Otras Transferencias Para Funcionamiento | H20: 551.494909 | I20: 447.453016
A21: 86000-BF_1.1.3.2 | B21: PUTUMAYO | C21: 86000 | D21: DEPARTAMENTO DEL PUTUMAYO | E21: 28 | F21: BF_1.1.3.2 | G21: Transferencias Para Inversión | H21: 303609.5012 | I21: 338708.3414
A22: 86000-BF_1.1.3.2.1 | B22: PUTUMAYO | C22: 86000 | D22: DEPARTAMENTO DEL PUTUMAYO | E22: 29 | F22: BF_1.1.3.2.1 | G22: Del Nivel Nacional | H22: 303609.5012 | I22: 338612.7139
A23: 86000-BF_1.1.3.2.1.1 | B23: PUTUMAYO | C23: 86000 | D23: DEPARTAMENTO DEL PUTUMAYO | E23: 30 | F23: BF_1.1.3.2.1.1 | G23: Sistema General de Participaciones | H23: 282774.3407 | I23: 305001.5982
A24: 86000-BF_1.1.3.2.1.1.1 | B24: PUTUMAYO | C24: 86000 | D24: DEPARTAMENTO DEL PUTUMAYO | E24: 31 | F24: BF_1.1.3.2.1.1.1 | G24: Sistema General de Participaciones - Educación | H24: 260227.9012 | I24: 286786.7406
A25: 86000-BF_1.1.3.2.1.1.2 | B25: PUTUMAYO | C25: 86000 | D25: DEPARTAMENTO DEL PUTUMAYO | E25: 32 | F25: BF_1.1.3.2.1.1.2 | G25: Sistema General de Participaciones - Salud | H25: 18341.48374 | I25: 13630.92542
A26: 86000-BF_1.1.3.2.1.1.3 | B26: PUTUMAYO | C26: 86000 | D26: DEPARTAMENTO DEL PUTUMAYO | E26: 33 | F26: BF_1.1.3.2.1.1.3 | G26: Sistema General de Participaciones - Agua Potable y Saneamiento Básico | H26: 4204.955731 | I26: 4583.932161
A27: 86000-BF_1.1.3.2.1.2 | B27: PUTUMAYO | C27: 86000 | D27: DEPARTAMENTO DEL PUTUMAYO | E27: 36 | F27: BF_1.1.3.2.1.2 | G27: FOSYGA y COLJUEGOS | H27: 268.953743 | I27: 518.321186
A28: 86000-BF_1.1.3.2.1.3 | B28: PUTUMAYO | C28: 86000 | D28: DEPARTAMENTO DEL PUTUMAYO | E28: 37 | F28: BF_1.1.3.2.1.3 | G28: Otras Transferencias de la Nación | H28: 20566.20674 | I28: 33092.7945
A29: 86000-BF_1.1.3.2.3 | B29: PUTUMAYO | C29: 86000 | D29: DEPARTAMENTO DEL PUTUMAYO | E29: 39 | F29: BF_1.1.3.2.3 | G29: Del Nivel Municipal | I29: 95.62756
A30: 86000-BF_2 | B30: PUTUMAYO | C30: 86000 | D30: DEPARTAMENTO DEL PUTUMAYO | E30: 43 | F30: BF_2 | G30: GASTOS TOTALES | H30: 438754.825 | I30: 453160.7408
A31: 86000-BF_2.1 | B31: PUTUMAYO | C31: 86000 | D31: DEPARTAMENTO DEL PUTUMAYO | E31: 44 | F31: BF_2.1 | G31: GASTOS CORRIENTES | H31: 385489.1585 | I31: 417093.6571
A32: 86000-BF_2.1.1 | B32: PUTUMAYO | C32: 86000 | D32: DEPARTAMENTO DEL PUTUMAYO | E32: 45 | F32: BF_2.1.1 | G32: FUNCIONAMIENTO | H32: 52389.62586 | I32: 50618.85601
A33: 86000-BF_2.1.1.1 | B33: PUTUMAYO | C33: 86000 | D33: DEPARTAMENTO DEL PUTUMAYO | E33: 46 | F33: BF_2.1.1.1 | G33: Gastos de Personal | H33: 24796.40502 | I33: 25753.54872
A34: 86000-BF_2.1.1.2 | B34: PUTUMAYO | C34: 86000 | D34: DEPARTAMENTO DEL PUTUMAYO | E34: 47 | F34: BF_2.1.1.2 | G34: Gastos Generales | H34: 8320.449387 | I34: 5441.013882
A35: 86000-BF_2.1.1.3 | B35: PUTUMAYO | C35: 86000 | D35: DEPARTAMENTO DEL PUTUMAYO | E35: 48 | F35: BF_2.1.1.3 | G35: Transferencias | H35: 19170.88015 | I35: 19296.89365
A36: 86000-BF_2.1.1.3.1 | B36: PUTUMAYO | C36: 86000 | D36: DEPARTAMENTO DEL PUTUMAYO | E36: 49 | F36: BF_2.1.1.3.1 | G36: Pensiones | H36: 12337.57715 | I36: 12951.07917
A37: 86000-BF_2.1.1.3.2 | B37: PUTUMAYO | C37: 86000 | D37: DEPARTAMENTO DEL PUTUMAYO | E37: 50 | F37: BF_2.1.1.3.2 | G37: A Fonpet | H37: 934.869919 | I37: 671.477948
A38: 86000-BF_2.1.1.3.4 | B38: PUTUMAYO | C38: 86000 | D38: DEPARTAMENTO DEL PUTUMAYO | E38: 52 | F38: BF_2.1.1.3.4 | G38: A Organismos de Control | H38: 4345.571381 | I38: 4621.917796
A39: 86000-BF_2.1.1.3.5 | B39: PUTUMAYO | C39: 86000 | D39: DEPARTAMENTO DEL PUTUMAYO | E39: 53 | F39: BF_2.1.1.3.5 | G39: A Establecimientos Públicos y Entidades Descentralizadas - Nivel Territorial | H39: 1242.562589 | I39: 626.545853
A40: 86000-BF_2.1.1.3.7 | B40: PUTUMAYO | C40: 86000 | D40: DEPARTAMENTO DEL PUTUMAYO | E40: 55 | F40: BF_2.1.1.3.7 | G40: Otras Transferencias | H40: 310.299113 | I40: 425.872884
A41: 86000-BF_2.1.1.6 | B41: PUTUMAYO | C41: 86000 | D41: DEPARTAMENTO DEL PUTUMAYO | E41: 58 | F41: BF_2.1.1.6 | G41: Otros Gastos de Funcionamiento | H41: 101.891295 | I41: 127.399759
A42: 86000-BF_2.1.2 | B42: PUTUMAYO | C42: 86000 | D42: DEPARTAMENTO DEL PUTUMAYO | E42: 59 | F42: BF_2.1.2 | G42: PAGO DE BONOS PENSIONALES Y CUOTAS PARTES DE BONO PENSIONAL | H42: 3206.287376 | I42: 1433.483763
A43: 86000-BF_2.1.3 | B43: PUTUMAYO | C43: 86000 | D43: DEPARTAMENTO DEL PUTUMAYO | E43: 60 | F43: BF_2.1.3 | G43: APORTES AL FONDO DE CONTINGENCIAS DE LAS ENTIDADES ESTATALES | H43: 749.522693 | I43: 125.726671
A44: 86000-BF_2.1.4 | B44: PUTUMAYO | C44: 86000 | D44: DEPARTAMENTO DEL PUTUMAYO | E44: 61 | F44: BF_2.1.4 | G44: GASTOS OPERATIVOS EN SECTORES SOCIALES (Remuneración al Trabajo, Prestaciones, y Subsidios en Sectores de Inversión) | H44: 329143.7226 | I44: 364915.5907
A45: =C45&"-"&F45 -> 86000-BF_2.1.4.1 | B45: PUTUMAYO | C45: 86000 | D45: DEPARTAMENTO DEL PUTUMAYO | E45: 62 | F45: BF_2.1.4.1 | G45: Educación | H45: 278132.4005 | I45: 305197.0061
A46: 86000-BF_2.1.4.2 | B46: PUTUMAYO | C46: 86000 | D46: DEPARTAMENTO DEL PUTUMAYO | E46: 63 | F46: BF_2.1.4.2 | G46: Salud | H46: 29702.77896 | I46: 37980.6816
A47: 86000-BF_2.1.4.5 | B47: PUTUMAYO | C47: 86000 | D47: DEPARTAMENTO DEL PUTUMAYO | E47: 66 | F47: BF_2.1.4.5 | G47: Otros Sectores | H47: 21308.54321 | I47: 21737.90295
A48: 86000-BF_3 | B48: PUTUMAYO | C48: 86000 | D48: DEPARTAMENTO DEL PUTUMAYO | E48: 70 | F48: BF_3 | G48: DÉFICIT O AHORRO CORRIENTE | H48: -7916.015908 | I48: 6656.957854
A49: 86000-BF_4 | B49: PUTUMAYO | C49: 86000 | D49: DEPARTAMENTO DEL PUTUMAYO | E49: 71 | F49: BF_4 | G49: INGRESOS DE CAPITAL | H49: 48745.01089 | I49: 32054.92484
A50: 86000-BF_4.4 | B50: PUTUMAYO | C50: 86000 | D50: DEPARTAMENTO DEL PUTUMAYO | E50: 75 | F50: BF_4.4 | G50: Rendimientos Financieros | H50: 7860.260487 | I50: 984.332416
A51: 86000-BF_4.6 | B51: PUTUMAYO | C51: 86000 | D51: DEPARTAMENTO DEL PUTUMAYO | E51: 77 | F51: BF_4.6 | G51: Desahorro FONPET | H51: 32396.87748 | I51: 17478.32938
A52: 86000-BF_4.6.1 | B52: PUTUMAYO | C52: 86000 | D52: DEPARTAMENTO DEL PUTUMAYO | E52: 78 | F52: BF_4.6.1 | G52: Salud | H52: 2185.07586
A53: 86000-BF_4.6.4 | B53: PUTUMAYO | C53: 86000 | D53: DEPARTAMENTO DEL PUTUMAYO | E53: 81 | F53: BF_4.6.4 | G53: Otros Desahorros y Retiros (Cuotas partes, Bonos y Devoluciones) | H53: 30211.80162 | I53: 17478.32938
A54: 86000-BF_4.7 | B54: PUTUMAYO | C54: 86000 | D54: DEPARTAMENTO DEL PUTUMAYO | E54: 82 | F54: BF_4.7 | G54: Otros Recursos de Capital (Donaciones, Aprovechamientos y Otros) | H54: 8487.87293 | I54: 13592.26304
A55: 86000-BF_5 | B55: PUTUMAYO | C55: 86000 | D55: DEPARTAMENTO DEL PUTUMAYO | E55: 83 | F55: BF_5 | G55: GASTOS DE CAPITAL | H55: 53265.66647 | I55: 36067.08371
A56: 86000-BF_5.1 | B56: PUTUMAYO | C56: 86000 | D56: DEPARTAMENTO DEL PUTUMAYO | E56: 84 | F56: BF_5.1 | G56: Formación Bruta de Capital (Construcción, Reparación, Mantenimiento, Preinversión, Otros) | H56: 47916.1234 | I56: 28011.62165
A57: 86000-BF_5.1.1 | B57: PUTUMAYO | C57: 86000 | D57: DEPARTAMENTO DEL PUTUMAYO | E57: 85 | F57: BF_5.1.1 | G57: Educación | H57: 17067.61599 | I57: 10083.5234
A58: 86000-BF_5.1.2 | B58: PUTUMAYO | C58: 86000 | D58: DEPARTAMENTO DEL PUTUMAYO | E58: 86 | F58: BF_5.1.2 | G58: Salud | H58: 4553.340542 | I58: 1101.077862
A59: 86000-BF_5.1.3 | B59: PUTUMAYO | C59: 86000 | D59: DEPARTAMENTO DEL PUTUMAYO | E59: 87 | F59: BF_5.1.3 | G59: Agua Potable | H59: 8446.563692 | I59: 4006.841296
A60: 86000-BF_5.1.4 | B60: PUTUMAYO | C60: 86000 | D60: DEPARTAMENTO DEL PUTUMAYO | E60: 88 | F60: BF_5.1.4 | G60: Vivienda | H60: 420 | I60: 1569.003156
A61: 86000-BF_5.1.5 | B61: PUTUMAYO | C61: 86000 | D61: DEPARTAMENTO DEL PUTUMAYO | E61: 89 | F61: BF_5.1.5 | G61: Vías | H61: 4218.367689 | I61: 3338.165183
A62: 86000-BF_5.1.6 | B62: PUTUMAYO | C62: 86000 | D62: DEPARTAMENTO DEL PUTUMAYO | E62: 90 | F62: BF_5.1.6 | G62: Otros Sectores | H62: 13210.23548 | I62: 7913.01076
A63: 86000-BF_5.2 | B63: PUTUMAYO | C63: 86000 | D63: DEPARTAMENTO DEL PUTUMAYO | E63: 91 | F63: BF_5.2 | G63: Déficit Fiscal de Vigencias Anteriores por Inversión | H63: 5349.543076 | I63: 8055.462053
A64: 86000-BF_6 | B64: PUTUMAYO | C64: 86000 | D64: DEPARTAMENTO DEL PUTUMAYO | E64: 92 | F64: BF_6 | G64: DÉFICIT O SUPERÁVIT DE CAPITAL | H64: -4520.655581 | I64: -4012.158871
A65: 86000-BF_7 | B65: PUTUMAYO | C65: 86000 | D65: DEPARTAMENTO DEL PUTUMAYO | E65: 93 | F65: BF_7 | G65: DÉFICIT O SUPERÁVIT TOTAL | H65: -12436.67149 | I65: 2644.798983
A66: 86000-BF_8 | B66: PUTUMAYO | C66: 86000 | D66: DEPARTAMENTO DEL PUTUMAYO | E66: 94 | F66: BF_8 | G66: FINANCIACIÓN | H66: 59421.35998 | I66: 56764.36
A67: 86000-BF_8.2 | B67: PUTUMAYO | C67: 86000 | D67: DEPARTAMENTO DEL PUTUMAYO | E67: 102 | F67: BF_8.2 | G67: Recursos del Balance (Superávit Fiscal, Cancelación de Reservas) | H67: 59421.35998 | I67: 56764.36
A68: 86000-BF_9.1 | B68: PUTUMAYO | C68: 86000 | D68: DEPARTAMENTO DEL PUTUMAYO | E68: 107 | F68: BF_9.1 | G68: DÉFICIT O SUPERÁVIT PRIMARIO | H68: 46984.68849 | I68: 59409.15898
A69: 86000-BF_10.1 | B69: PUTUMAYO | C69: 86000 | D69: DEPARTAMENTO DEL PUTUMAYO | E69: 110 | F69: BF_10.1 | G69: INGRESOS TOTALES SIN INCLUIR RECURSOS PARA RESERVAS PRESUPUESTALES | H69: 485739.5135 | I69: 512569.8998
A70: 86000-BF_10.2 | B70: PUTUMAYO | C70: 86000 | D70: DEPARTAMENTO DEL PUTUMAYO | E70: 111 | F70: BF_10.2 | G70: GASTOS TOTALES SIN INCLUIR GASTOS POR RESERVAS PRESUPUESTALES | H70: 438754.825 | I70: 453160.7408
A71: 86000-BF_10.3 | B71: PUTUMAYO | C71: 86000 | D71: DEPARTAMENTO DEL PUTUMAYO | E71: 112 | F71: BF_10.3 | G71: DÉFICIT O SUPERÁVIT PRESUPUESTAL SIN INCLUIR RESERVAS PRESUPUESTALES | H71: 46984.68849 | I71: 59409.15898
A72: 86000-BF_12.1 | B72: PUTUMAYO | C72: 86000 | D72: DEPARTAMENTO DEL PUTUMAYO | E72: 114 | F72: BF_12.1 | G72: INGRESOS TOTALES | H72: 508984.3991 | I72: 541853.2139
A73: 86000-BF_12.2 | B73: PUTUMAYO | C73: 86000 | D73: DEPARTAMENTO DEL PUTUMAYO | E73: 115 | F73: BF_12.2 | G73: GASTOS TOTALES | H73: 453806.8261 | I73: 467568.7318
A74: 86000-BF_12.3 | B74: PUTUMAYO | C74: 86000 | D74: DEPARTAMENTO DEL PUTUMAYO | E74: 116 | F74: BF_12.3 | G74: DÉFICIT O SUPERÁVIT PRESUPUESTAL | H74: 55177.57299 | I74: 74284.48208
A75: 86000-BF_13.1 | B75: PUTUMAYO | C75: 86000 | D75: DEPARTAMENTO DEL PUTUMAYO | E75: 118 | F75: BF_13.1 | G75: Recursos que Financian Reservas Presupuestales Excepcionales (Ley 819/2003) | H75: 23244.8856 | I75: 29283.3141
A76: 86000-BF_13.2 | B76: PUTUMAYO | C76: 86000 | D76: DEPARTAMENTO DEL PUTUMAYO | E76: 119 | F76: BF_13.2 | G76: Reservas Presupuestales de Funcionamiento Vigencia Anterior | H76: 3330.640727 | I76: 1385.180022
A77: 86000-BF_13.3 | B77: PUTUMAYO | C77: 86000 | D77: DEPARTAMENTO DEL PUTUMAYO | E77: 120 | F77: BF_13.3 | G77: Reservas Presupuestales de Inversión Vigencia Anterior | H77: 11721.36037 | I77: 13022.811
A78: 86000-BF_13.4 | B78: PUTUMAYO | C78: 86000 | D78: DEPARTAMENTO DEL PUTUMAYO | E78: 121 | F78: BF_13.4 | G78: DEFICIT O SUPERAVIT RESERVAS PRESUPUESTALES | H78: 8192.884502 | I78: 14875.32308
A79: 86001-BF_1 | B79: PUTUMAYO | C79: 86001 | D79: SAN MIGUEL DE MOCOA | E79: 1 | F79: BF_1 | G79: INGRESOS TOTALES | H79: 55034.35036 | I79: 55546.53077
A80: 86001-BF_1.1 | B80: PUTUMAYO | C80: 86001 | D80: SAN MIGUEL DE MOCOA | E80: 2 | F80: BF_1.1 | G80: INGRESOS CORRIENTES | H80: 53811.00707 | I80: 55375.93995
A81: 86001-BF_1.1.1 | B81: PUTUMAYO | C81: 86001 | D81: SAN MIGUEL DE MOCOA | E81: 3 | F81: BF_1.1.1 | G81: TRIBUTARIOS | H81: 11150.65254 | I81: 8886.044806
A82: 86001-BF_1.1.1.1 | B82: PUTUMAYO | C82: 86001 | D82: SAN MIGUEL DE MOCOA | E82: 4 | F82: BF_1.1.1.1 | G82: Vehículos Automotores | H82: 244.112462
A83: 86001-BF_1.1.1.2 | B83: PUTUMAYO | C83: 86001 | D83: SAN MIGUEL DE MOCOA | E83: 5 | F83: BF_1.1.1.2 | G83: Impuesto Predial Unificado | H83: 1524.866872 | I83: 2113.734155
A84: 86001-BF_1.1.1.3 | B84: PUTUMAYO | C84: 86001 | D84: SAN MIGUEL DE MOCOA | E84: 6 | F84: BF_1.1.1.3 | G84: Impuesto de Industria y Comercio | H84: 4713.484386 | I84: 3947.822734
A85: 86001-BF_1.1.1.8 | B85: PUTUMAYO | C85: 86001 | D85: SAN MIGUEL DE MOCOA | E85: 11 | F85: BF_1.1.1.8 | G85: Sobretasa Consumo Gasolina Motor | H85: 868.225 | I85: 679.365
A86: 86001-BF_1.1.1.9 | B86: PUTUMAYO | C86: 86001 | D86: SAN MIGUEL DE MOCOA | E86: 12 | F86: BF_1.1.1.9 | G86: Estampillas | H86: 814.244592 | I86: 368.851168
A87: 86001-BF_1.1.1.12 | B87: PUTUMAYO | C87: 86001 | D87: SAN MIGUEL DE MOCOA | E87: 15 | F87: BF_1.1.1.12 | G87: Otros Ingresos Tributarios | H87: 2985.719225 | I87: 1776.271749
A88: 86001-BF_1.1.2 | B88: PUTUMAYO | C88: 86001 | D88: SAN MIGUEL DE MOCOA | E88: 16 | F88: BF_1.1.2 | G88: NO TRIBUTARIOS | H88: 1633.76897 | I88: 913.503802
A89: 86001-BF_1.1.2.1 | B89: PUTUMAYO | C89: 86001 | D89: SAN MIGUEL DE MOCOA | E89: 17 | F89: BF_1.1.2.1 | G89: Ingresos de la Propiedad: Tasas, Derechos, Multas y Sanciones | H89: 1633.76897 | I89: 913.503802
A90: 86001-BF_1.1.3 | B90: PUTUMAYO | C90: 86001 | D90: SAN MIGUEL DE MOCOA | E90: 19 | F90: BF_1.1.3 | G90: TRANSFERENCIAS | H90: 41026.58556 | I90: 45576.39134
A91: 86001-BF_1.1.3.1 | B91: PUTUMAYO | C91: 86001 | D91: SAN MIGUEL DE MOCOA | E91: 20 | F91: BF_1.1.3.1 | G91: Transferencias Para Funcionamiento | H91: 1028.687753 | I91: 1594.994684
A92: 86001-BF_1.1.3.1.1 | B92: PUTUMAYO | C92: 86001 | D92: SAN MIGUEL DE MOCOA | E92: 21 | F92: BF_1.1.3.1.1 | G92: Del Nivel Nacional | H92: 1028.687753 | I92: 1173.581609
A93: 86001-BF_1.1.3.1.1.1 | B93: PUTUMAYO | C93: 86001 | D93: SAN MIGUEL DE MOCOA | E93: 22 | F93: BF_1.1.3.1.1.1 | G93: Sistema General de Participaciones - Propósito General - Libre destinación - Municipios categorías 4, 5 y 6 | H93: 1028.687753 | I93: 1173.581609
A94: 86001-BF_1.1.3.1.2 | B94: PUTUMAYO | C94: 86001 | D94: SAN MIGUEL DE MOCOA | E94: 24 | F94: BF_1.1.3.1.2 | G94: Del Nivel Departamental | I94: 235.875494
A95: 86001-BF_1.1.3.1.2.1 | B95: PUTUMAYO | C95: 86001 | D95: SAN MIGUEL DE MOCOA | E95: 25 | F95: BF_1.1.3.1.2.1 | G95: De Vehículos Automotores | I95: 235.875494
A96: 86001-BF_1.1.3.1.3 | B96: PUTUMAYO | C96: 86001 | D96: SAN MIGUEL DE MOCOA | E96: 27 | F96: BF_1.1.3.1.3 | G96: Otras Transferencias Para Funcionamiento | I96: 185.537581
A97: 86001-BF_1.1.3.2 | B97: PUTUMAYO | C97: 86001 | D97: SAN MIGUEL DE MOCOA | E97: 28 | F97: BF_1.1.3.2 | G97: Transferencias Para Inversión | H97: 39997.89781 | I97: 43981.39666
A98: 86001-BF_1.1.3.2.1 | B98: PUTUMAYO | C98: 86001 | D98: SAN MIGUEL DE MOCOA | E98: 29 | F98: BF_1.1.3.2.1 | G98: Del Nivel Nacional | H98: 38075.87659 | I98: 42234.57568
A99: 86001-BF_1.1.3.2.1.1 | B99: PUTUMAYO | C99: 86001 | D99: SAN MIGUEL DE MOCOA | E99: 30 | F99: BF_1.1.3.2.1.1 | G99: Sistema General de Participaciones | H99: 19671.17306 | I99: 20916.35363
A100: 86001-BF_1.1.3.2.1.1.1 | B100: PUTUMAYO | C100: 86001 | D100: SAN MIGUEL DE MOCOA | E100: 31 | F100: BF_1.1.3.2.1.1.1 | G100: Sistema General de Participaciones - Educación | H100: 1468.547331 | I100: 1512.643568
A101: 86001-BF_1.1.3.2.1.1.2 | B101: PUTUMAYO | C101: 86001 | D101: SAN MIGUEL DE MOCOA | E101: 32 | F101: BF_1.1.3.2.1.1.2 | G101: Sistema General de Participaciones - Salud | H101: 14751.29673 | I101: 15239.48971
A102: 86001-BF_1.1.3.2.1.1.3 | B102: PUTUMAYO | C102: 86001 | D102: SAN MIGUEL DE MOCOA | E102: 33 | F102: BF_1.1.3.2.1.1.3 | G102: Sistema General de Participaciones - Agua Potable y Saneamiento Básico | H102: 1909.217076 | I102: 2454.662776
A103: 86001-BF_1.1.3.2.1.1.4 | B103: PUTUMAYO | C103: 86001 | D103: SAN MIGUEL DE MOCOA | E103: 34 | F103: BF_1.1.3.2.1.1.4 | G103: Sistema General de Participaciones - Propósito General - Forzosa Inversión | H103: 1278.511921 | I103: 1458.594284
A104: 86001-BF_1.1.3.2.1.1.5 | B104: PUTUMAYO | C104: 86001 | D104: SAN MIGUEL DE MOCOA | E104: 35 | F104: BF_1.1.3.2.1.1.5 | G104: Otras del Sistema General de Participaciones | H104: 263.599999 | I104: 250.963292
A105: 86001-BF_1.1.3.2.1.2 | B105: PUTUMAYO | C105: 86001 | D105: SAN MIGUEL DE MOCOA | E105: 36 | F105: BF_1.1.3.2.1.2 | G105: FOSYGA y COLJUEGOS | H105: 18243.69043 | I105: 21318.22205
A106: 86001-BF_1.1.3.2.1.3 | B106: PUTUMAYO | C106: 86001 | D106: SAN MIGUEL DE MOCOA | E106: 37 | F106: BF_1.1.3.2.1.3 | G106: Otras Transferencias de la Nación | H106: 161.013096
A107: 86001-BF_1.1.3.2.2 | B107: PUTUMAYO | C107: 86001 | D107: SAN MIGUEL DE MOCOA | E107: 38 | F107: BF_1.1.3.2.2 | G107: Del Nivel Departamental | H107: 1880.15109 | I107: 1634.683618
A108: 86001-BF_1.1.3.2.4 | B108: PUTUMAYO | C108: 86001 | D108: SAN MIGUEL DE MOCOA | E108: 40 | F108: BF_1.1.3.2.4 | G108: Sector Descentralizado | H108: 41.87013 | I108: 112.137366
A109: =C109&"-"&F109 -> 86001-BF_2 | B109: PUTUMAYO | C109: 86001 | D109: SAN MIGUEL DE MOCOA | E109: 43 | F109: BF_2 | G109: GASTOS TOTALES | H109: 55573.80578 | I109: 53892.54465
A110: 86001-BF_2.1 | B110: PUTUMAYO | C110: 86001 | D110: SAN MIGUEL DE MOCOA | E110: 44 | F110: BF_2.1 | G110: GASTOS CORRIENTES | H110: 50773.27309 | I110: 51510.1262
A111: 86001-BF_2.1.1 | B111: PUTUMAYO | C111: 86001 | D111: SAN MIGUEL DE MOCOA | E111: 45 | F111: BF_2.1.1 | G111: FUNCIONAMIENTO | H111: 9307.693936 | I111: 8982.693349
A112: 86001-BF_2.1.1.1 | B112: PUTUMAYO | C112: 86001 | D112: SAN MIGUEL DE MOCOA | E112: 46 | F112: BF_2.1.1.1 | G112: Gastos de Personal | H112: 6504.784309 | I112: 6762.221376
A113: 86001-BF_2.1.1.2 | B113: PUTUMAYO | C113: 86001 | D113: SAN MIGUEL DE MOCOA | E113: 47 | F113: BF_2.1.1.2 | G113: Gastos Generales | H113: 704.70834 | I113: 497.548166
A114: 86001-BF_2.1.1.3 | B114: PUTUMAYO | C114: 86001 | D114: SAN MIGUEL DE MOCOA | E114: 48 | F114: BF_2.1.1.3 | G114: Transferencias | H114: 1985.239984 | I114: 1722.923807
A115: 86001-BF_2.1.1.3.1 | B115: PUTUMAYO | C115: 86001 | D115: SAN MIGUEL DE MOCOA | E115: 49 | F115: BF_2.1.1.3.1 | G115: Pensiones | H115: 687.322887 | I115: 627.403761
A116: 86001-BF_2.1.1.3.4 | B116: PUTUMAYO | C116: 86001 | D116: SAN MIGUEL DE MOCOA | E116: 52 | F116: BF_2.1.1.3.4 | G116: A Organismos de Control | H116: 401.688117 | I116: 389.157861
A117: 86001-BF_2.1.1.3.6 | B117: PUTUMAYO | C117: 86001 | D117: SAN MIGUEL DE MOCOA | E117: 54 | F117: BF_2.1.1.3.6 | G117: Sentencias y Conciliaciones | H117: 261.532511
A118: 86001-BF_2.1.1.3.7 | B118: PUTUMAYO | C118: 86001 | D118: SAN MIGUEL DE MOCOA | E118: 55 | F118: BF_2.1.1.3.7 | G118: Otras Transferencias | H118: 634.696469 | I118: 706.362185
A119: 86001-BF_2.1.1.4 | B119: PUTUMAYO | C119: 86001 | D119: SAN MIGUEL DE MOCOA | E119: 56 | F119: BF_2.1.1.4 | G119: Déficit Fiscal de Vigencias Anteriores por Funcionamiento | H119: 112.961303
A120: 86001-BF_2.1.4 | B120: PUTUMAYO | C120: 86001 | D120: SAN MIGUEL DE MOCOA | E120: 61 | F120: BF_2.1.4 | G120: GASTOS OPERATIVOS EN SECTORES SOCIALES (Remuneración al Trabajo, Prestaciones, y Subsidios en Sectores de Inversión) | H120: 41444.59389 | I120: 42524.14016
A121: 86001-BF_2.1.4.1 | B121: PUTUMAYO | C121: 86001 | D121: SAN MIGUEL DE MOCOA | E121: 62 | F121: BF_2.1.4.1 | G121: Educación | H121: 1745.278996 | I121: 1326.990137
A122: 86001-BF_2.1.4.2 | B122: PUTUMAYO | C122: 86001 | D122: SAN MIGUEL DE MOCOA | E122: 63 | F122: BF_2.1.4.2 | G122: Salud | H122: 34983.70082 | I122: 38401.32395
A123: 86001-BF_2.1.4.3 | B123: PUTUMAYO | C123: 86001 | D123: SAN MIGUEL DE MOCOA | E123: 64 | F123: BF_2.1.4.3 | G123: Agua Potable y Saneamiento Básico | H123: 876.751982 | I123: 1046.877594
A124: 86001-BF_2.1.4.5 | B124: PUTUMAYO | C124: 86001 | D124: SAN MIGUEL DE MOCOA | E124: 66 | F124: BF_2.1.4.5 | G124: Otros Sectores | H124: 3838.862092 | I124: 1748.948485
A125: 86001-BF_2.1.5 | B125: PUTUMAYO | C125: 86001 | D125: SAN MIGUEL DE MOCOA | E125: 67 | F125: BF_2.1.5 | G125: INTERESES Y COMISIONES DE LA DEUDA | H125: 20.985263 | I125: 3.292688
A126: 86001-BF_2.1.5.1 | B126: PUTUMAYO | C126: 86001 | D126: SAN MIGUEL DE MOCOA | E126: 68 | F126: BF_2.1.5.1 | G126: Interna | H126: 20.985263 | I126: 3.292688
A127: 86001-BF_3 | B127: PUTUMAYO | C127: 86001 | D127: SAN MIGUEL DE MOCOA | E127: 70 | F127: BF_3 | G127: DÉFICIT O AHORRO CORRIENTE | H127: 3037.733978 | I127: 3865.813753
A128: 86001-BF_4 | B128: PUTUMAYO | C128: 86001 | D128: SAN MIGUEL DE MOCOA | E128: 71 | F128: BF_4 | G128: INGRESOS DE CAPITAL | H128: 1223.343297 | I128: 170.590823
A129: 86001-BF_4.4 | B129: PUTUMAYO | C129: 86001 | D129: SAN MIGUEL DE MOCOA | E129: 75 | F129: BF_4.4 | G129: Rendimientos Financieros | I129: 33.689125
A130: 86001-BF_4.6 | B130: PUTUMAYO | C130: 86001 | D130: SAN MIGUEL DE MOCOA | E130: 77 | F130: BF_4.6 | G130: Desahorro FONPET | H130: 930.761471 | I130: 136.901698
A131: 86001-BF_4.6.1 | B131: PUTUMAYO | C131: 86001 | D131: SAN MIGUEL DE MOCOA | E131: 78 | F131: BF_4.6.1 | G131: Salud | H131: 334.658999
A132: 86001-BF_4.6.4 | B132: PUTUMAYO | C132: 86001 | D132: SAN MIGUEL DE MOCOA | E132: 81 | F132: BF_4.6.4 | G132: Otros Desahorros y Retiros (Cuotas partes, Bonos y Devoluciones) | H132: 596.102472 | I132: 136.901698
A133: 86001-BF_4.7 | B133: PUTUMAYO | C133: 86001 | D133: SAN MIGUEL DE MOCOA | E133: 82 | F133: BF_4.7 | G133: Otros Recursos de Capital (Donaciones, Aprovechamientos y Otros) | H133: 292.581826
A134: 86001-BF_5 | B134: PUTUMAYO | C134: 86001 | D134: SAN MIGUEL DE MOCOA | E134: 83 | F134: BF_5 | G134: GASTOS DE CAPITAL | H134: 4800.532691 | I134: 2382.41845
A135: 86001-BF_5.1 | B135: PUTUMAYO | C135: 86001 | D135: SAN MIGUEL DE MOCOA | E135: 84 | F135: BF_5.1 | G135: Formación Bruta de Capital (Construcción, Reparación, Mantenimiento, Preinversión, Otros) | H135: 4731.155624 | I135: 2285.023722
A136: 86001-BF_5.1.1 | B136: PUTUMAYO | C136: 86001 | D136: SAN MIGUEL DE MOCOA | E136: 85 | F136: BF_5.1.1 | G136: Educación | H136: 88.980589 | I136: 230.055553
A137: 86001-BF_5.1.3 | B137: PUTUMAYO | C137: 86001 | D137: SAN MIGUEL DE MOCOA | E137: 87 | F137: BF_5.1.3 | G137: Agua Potable | H137: 1221.462475 | I137: 477.79888
A138: 86001-BF_5.1.4 | B138: PUTUMAYO | C138: 86001 | D138: SAN MIGUEL DE MOCOA | E138: 88 | F138: BF_5.1.4 | G138: Vivienda | H138: 292.581826
A139: 86001-BF_5.1.5 | B139: PUTUMAYO | C139: 86001 | D139: SAN MIGUEL DE MOCOA | E139: 89 | F139: BF_5.1.5 | G139: Vías | I139: 23.154
A140: 86001-BF_5.1.6 | B140: PUTUMAYO | C140: 86001 | D140: SAN MIGUEL DE MOCOA | E140: 90 | F140: BF_5.1.6 | G140: Otros Sectores | H140: 3128.130734 | I140: 1554.015289
A141: 86001-BF_5.2 | B141: PUTUMAYO | C141: 86001 | D141: SAN MIGUEL DE MOCOA | E141: 91 | F141: BF_5.2 | G141: Déficit Fiscal de Vigencias Anteriores por Inversión | H141: 69.377067 | I141: 97.394728
A142: 86001-BF_6 | B142: PUTUMAYO | C142: 86001 | D142: SAN MIGUEL DE MOCOA | E142: 92 | F142: BF_6 | G142: DÉFICIT O SUPERÁVIT DE CAPITAL | H142: -3577.189394 | I142: -2211.827627
A143: 86001-BF_7 | B143: PUTUMAYO | C143: 86001 | D143: SAN MIGUEL DE MOCOA | E143: 93 | F143: BF_7 | G143: DÉFICIT O SUPERÁVIT TOTAL | H143: -539.455416 | I143: 1653.986126
A144: 86001-BF_8 | B144: PUTUMAYO | C144: 86001 | D144: SAN MIGUEL DE MOCOA | E144: 94 | F144: BF_8 | G144: FINANCIACIÓN | H144: 6706.048716 | I144: 5379.966639
A145: 86001-BF_8.1 | B145: PUTUMAYO | C145: 86001 | D145: SAN MIGUEL DE MOCOA | E145: 95 | F145: BF_8.1 | G145: RECURSOS DEL CRÉDITO | H145: -240 | I145: -120
A146: 86001-BF_8.1.1 | B146: PUTUMAYO | C146: 86001 | D146: SAN MIGUEL DE MOCOA | E146: 96 | F146: BF_8.1.1 | G146: Interno | H146: -240 | I146: -120
A147: 86001-BF_8.1.1.2 | B147: PUTUMAYO | C147: 86001 | D147: SAN MIGUEL DE MOCOA | E147: 98 | F147: BF_8.1.1.2 | G147: Amortizaciones | H147: 240 | I147: 120
A148: 86001-BF_8.2 | B148: PUTUMAYO | C148: 86001 | D148: SAN MIGUEL DE MOCOA | E148: 102 | F148: BF_8.2 | G148: Recursos del Balance (Superávit Fiscal, Cancelación de Reservas) | H148: 6946.048716 | I148: 5499.966639
A149: 86001-BF_9.1 | B149: PUTUMAYO | C149: 86001 | D149: SAN MIGUEL DE MOCOA | E149: 107 | F149: BF_9.1 | G149: DÉFICIT O SUPERÁVIT PRIMARIO | H149: 6427.578563 | I149: 7157.245453
A150: 86001-BF_9.2 | B150: PUTUMAYO | C150: 86001 | D150: SAN MIGUEL DE MOCOA | E150: 108 | F150: BF_9.2 | G150: DÉFICIT O SUPERÁVIT PRIMARIO/INTERESES | H150: 306.290112 | I150: 2173.678603
A151: 86001-BF_10.1 | B151: PUTUMAYO | C151: 86001 | D151: SAN MIGUEL DE MOCOA | E151: 110 | F151: BF_10.1 | G151: INGRESOS TOTALES SIN INCLUIR RECURSOS PARA RESERVAS PRESUPUESTALES | H151: 61980.39908 | I151: 61046.49741
A152: 86001-BF_10.2 | B152: PUTUMAYO | C152: 86001 | D152: SAN MIGUEL DE MOCOA | E152: 111 | F152: BF_10.2 | G152: GASTOS TOTALES SIN INCLUIR GASTOS POR RESERVAS PRESUPUESTALES | H152: 55813.80578 | I152: 54012.54465
A153: 86001-BF_10.3 | B153: PUTUMAYO | C153: 86001 | D153: SAN MIGUEL DE MOCOA | E153: 112 | F153: BF_10.3 | G153: DÉFICIT O SUPERÁVIT PRESUPUESTAL SIN INCLUIR RESERVAS PRESUPUESTALES | H153: 6166.5933 | I153: 7033.952765
A154: 86001-BF_12.1 | B154: PUTUMAYO | C154: 86001 | D154: SAN MIGUEL DE MOCOA | E154: 114 | F154: BF_12.1 | G154: INGRESOS TOTALES | H154: 63454.44068 | I154: 61538.31981
A155: 86001-BF_12.2 | B155: PUTUMAYO | C155: 86001 | D155: SAN MIGUEL DE MOCOA | E155: 115 | F155: BF_12.2 | G155: GASTOS TOTALES | H155: 57004.13878 | I155: 54141.85035
A156: 86001-BF_12.3 | B156: PUTUMAYO | C156: 86001 | D156: SAN MIGUEL DE MOCOA | E156: 116 | F156: BF_12.3 | G156: DÉFICIT O SUPERÁVIT PRESUPUESTAL | H156: 6450.3019 | I156: 7396.469465
A157: 86001-BF_13.1 | B157: PUTUMAYO | C157: 86001 | D157: SAN MIGUEL DE MOCOA | E157: 118 | F157: BF_13.1 | G157: Recursos que Financian Reservas Presupuestales Excepcionales (Ley 819/2003) | H157: 1474.0416 | I157: 491.8224
A158: 86001-BF_13.2 | B158: PUTUMAYO | C158: 86001 | D158: SAN MIGUEL DE MOCOA | E158: 119 | F158: BF_13.2 | G158: Reservas Presupuestales de Funcionamiento Vigencia Anterior | H158: 56.303727 | I158: 1.490724
A159: 86001-BF_13.3 | B159: PUTUMAYO | C159: 86001 | D159: SAN MIGUEL DE MOCOA | E159: 120 | F159: BF_13.3 | G159: Reservas Presupuestales de Inversión Vigencia Anterior | H159: 1134.029227 | I159: 127.815018
A160: 86001-BF_13.4 | B160: PUTUMAYO | C160: 86001 | D160: SAN MIGUEL DE MOCOA | E160: 121 | F160: BF_13.4 | G160: DEFICIT O SUPERAVIT RESERVAS PRESUPUESTALES | H160: 283.708646 | I160: 362.516658
A161: 86219-BF_1 | B161: PUTUMAYO | C161: 86219 | D161: COLÓN - PUTUMAYO | E161: 1 | F161: BF_1 | G161: INGRESOS TOTALES | H161: 7532.375837 | I161: 7024.974886
A162: 86219-BF_1.1 | B162: PUTUMAYO | C162: 86219 | D162: COLÓN - PUTUMAYO | E162: 2 | F162: BF_1.1 | G162: INGRESOS CORRIENTES | H162: 7216.586392 | I162: 6953.899378
A163: 86219-BF_1.1.1 | B163: PUTUMAYO | C163: 86219 | D163: COLÓN - PUTUMAYO | E163: 3 | F163: BF_1.1.1 | G163: TRIBUTARIOS | H163: 1099.791081 | I163: 478.770846
A164: 86219-BF_1.1.1.2 | B164: PUTUMAYO | C164: 86219 | D164: COLÓN - PUTUMAYO | E164: 5 | F164: BF_1.1.1.2 | G164: Impuesto Predial Unificado | H164: 298.699025 | I164: 139.642634
A165: 86219-BF_1.1.1.3 | B165: PUTUMAYO | C165: 86219 | D165: COLÓN - PUTUMAYO | E165: 6 | F165: BF_1.1.1.3 | G165: Impuesto de Industria y Comercio | H165: 116.708925 | I165: 105.707988
A166: 86219-BF_1.1.1.8 | B166: PUTUMAYO | C166: 86219 | D166: COLÓN - PUTUMAYO | E166: 11 | F166: BF_1.1.1.8 | G166: Sobretasa Consumo Gasolina Motor | H166: 54.527
A167: 86219-BF_1.1.1.9 | B167: PUTUMAYO | C167: 86219 | D167: COLÓN - PUTUMAYO | E167: 12 | F167: BF_1.1.1.9 | G167: Estampillas | H167: 444.698241 | I167: 58.034728
A168: 86219-BF_1.1.1.12 | B168: PUTUMAYO | C168: 86219 | D168: COLÓN - PUTUMAYO | E168: 15 | F168: BF_1.1.1.12 | G168: Otros Ingresos Tributarios | H168: 185.15789 | I168: 175.385496
A169: 86219-BF_1.1.2 | B169: PUTUMAYO | C169: 86219 | D169: COLÓN - PUTUMAYO | E169: 16 | F169: BF_1.1.2 | G169: NO TRIBUTARIOS | H169: 7.5236 | I169: 70.821428
A170: 86219-BF_1.1.2.1 | B170: PUTUMAYO | C170: 86219 | D170: COLÓN - PUTUMAYO | E170: 17 | F170: BF_1.1.2.1 | G170: Ingresos de la Propiedad: Tasas, Derechos, Multas y Sanciones | H170: 7.5236 | I170: 70.821428
A171: 86219-BF_1.1.3 | B171: PUTUMAYO | C171: 86219 | D171: COLÓN - PUTUMAYO | E171: 19 | F171: BF_1.1.3 | G171: TRANSFERENCIAS | H171: 6109.271711 | I171: 6404.307104
A172: 86219-BF_1.1.3.1 | B172: PUTUMAYO | C172: 86219 | D172: COLÓN - PUTUMAYO | E172: 20 | F172: BF_1.1.3.1 | G172: Transferencias Para Funcionamiento | H172: 550.578656 | I172: 686.420488
A173: =C173&"-"&F173 -> 86219-BF_1.1.3.1.1 | B173: PUTUMAYO | C173: 86219 | D173: COLÓN - PUTUMAYO | E173: 21 | F173: BF_1.1.3.1.1 | G173: Del Nivel Nacional | H173: 550.002336 | I173: 560.054408
A174: 86219-BF_1.1.3.1.1.1 | B174: PUTUMAYO | C174: 86219 | D174: COLÓN - PUTUMAYO | E174: 22 | F174: BF_1.1.3.1.1.1 | G174: Sistema General de Participaciones - Propósito General - Libre destinación - Municipios categorías 4, 5 y 6 | H174: 550.002336 | I174: 560.054408
A175: 86219-BF_1.1.3.1.2 | B175: PUTUMAYO | C175: 86219 | D175: COLÓN - PUTUMAYO | E175: 24 | F175: BF_1.1.3.1.2 | G175: Del Nivel Departamental | H175: 0.57632 | I175: 126.36608
A176: 86219-BF_1.1.3.1.2.1 | B176: PUTUMAYO | C176: 86219 | D176: COLÓN - PUTUMAYO | E176: 25 | F176: BF_1.1.3.1.2.1 | G176: De Vehículos Automotores | H176: 0.57632 | I176: 0.43058
A177: 86219-BF_1.1.3.1.2.2 | B177: PUTUMAYO | C177: 86219 | D177: COLÓN - PUTUMAYO | E177: 26 | F177: BF_1.1.3.1.2.2 | G177: Otras Transferencias del Departamento | I177: 125.9355
A178: 86219-BF_1.1.3.2 | B178: PUTUMAYO | C178: 86219 | D178: COLÓN - PUTUMAYO | E178: 28 | F178: BF_1.1.3.2 | G178: Transferencias Para Inversión | H178: 5558.693055 | I178: 5717.886616
A179: 86219-BF_1.1.3.2.1 | B179: PUTUMAYO | C179: 86219 | D179: COLÓN - PUTUMAYO | E179: 29 | F179: BF_1.1.3.2.1 | G179: Del Nivel Nacional | H179: 5469.357784 | I179: 5717.886616
A180: 86219-BF_1.1.3.2.1.1 | B180: PUTUMAYO | C180: 86219 | D180: COLÓN - PUTUMAYO | E180: 30 | F180: BF_1.1.3.2.1.1 | G180: Sistema General de Participaciones | H180: 2993.075541 | I180: 3089.595637
A181: 86219-BF_1.1.3.2.1.1.1 | B181: PUTUMAYO | C181: 86219 | D181: COLÓN - PUTUMAYO | E181: 31 | F181: BF_1.1.3.2.1.1.1 | G181: Sistema General de Participaciones - Educación | H181: 160.652451 | I181: 127.577214
A182: 86219-BF_1.1.3.2.1.1.2 | B182: PUTUMAYO | C182: 86219 | D182: COLÓN - PUTUMAYO | E182: 32 | F182: BF_1.1.3.2.1.1.2 | G182: Sistema General de Participaciones - Salud | H182: 1688.889892 | I182: 1800.986194
A183: 86219-BF_1.1.3.2.1.1.3 | B183: PUTUMAYO | C183: 86219 | D183: COLÓN - PUTUMAYO | E183: 33 | F183: BF_1.1.3.2.1.1.3 | G183: Sistema General de Participaciones - Agua Potable y Saneamiento Básico | H183: 367.888486 | I183: 370.90655
A184: 86219-BF_1.1.3.2.1.1.4 | B184: PUTUMAYO | C184: 86219 | D184: COLÓN - PUTUMAYO | E184: 34 | F184: BF_1.1.3.2.1.1.4 | G184: Sistema General de Participaciones - Propósito General - Forzosa Inversión | H184: 759.527029 | I184: 773.408468
A185: 86219-BF_1.1.3.2.1.1.5 | B185: PUTUMAYO | C185: 86219 | D185: COLÓN - PUTUMAYO | E185: 35 | F185: BF_1.1.3.2.1.1.5 | G185: Otras del Sistema General de Participaciones | H185: 16.117683 | I185: 16.717211
A186: 86219-BF_1.1.3.2.1.2 | B186: PUTUMAYO | C186: 86219 | D186: COLÓN - PUTUMAYO | E186: 36 | F186: BF_1.1.3.2.1.2 | G186: FOSYGA y COLJUEGOS | H186: 2476.282243 | I186: 2628.290979
A187: 86219-BF_1.1.3.2.2 | B187: PUTUMAYO | C187: 86219 | D187: COLÓN - PUTUMAYO | E187: 38 | F187: BF_1.1.3.2.2 | G187: Del Nivel Departamental | H187: 89.335271
A188: 86219-BF_2 | B188: PUTUMAYO | C188: 86219 | D188: COLÓN - PUTUMAYO | E188: 43 | F188: BF_2 | G188: GASTOS TOTALES | H188: 7652.529817 | I188: 7340.831386
A189: 86219-BF_2.1 | B189: PUTUMAYO | C189: 86219 | D189: COLÓN - PUTUMAYO | E189: 44 | F189: BF_2.1 | G189: GASTOS CORRIENTES | H189: 6725.405294 | I189: 6811.33258
A190: 86219-BF_2.1.1 | B190: PUTUMAYO | C190: 86219 | D190: COLÓN - PUTUMAYO | E190: 45 | F190: BF_2.1.1 | G190: FUNCIONAMIENTO | H190: 791.738095 | I190: 815.864472
A191: 86219-BF_2.1.1.1 | B191: PUTUMAYO | C191: 86219 | D191: COLÓN - PUTUMAYO | E191: 46 | F191: BF_2.1.1.1 | G191: Gastos de Personal | H191: 411.324151 | I191: 500.320834
A192: 86219-BF_2.1.1.2 | B192: PUTUMAYO | C192: 86219 | D192: COLÓN - PUTUMAYO | E192: 47 | F192: BF_2.1.1.2 | G192: Gastos Generales | H192: 55.775365 | I192: 62.04922
A193: 86219-BF_2.1.1.3 | B193: PUTUMAYO | C193: 86219 | D193: COLÓN - PUTUMAYO | E193: 48 | F193: BF_2.1.1.3 | G193: Transferencias | H193: 206.821291 | I193: 253.494418
A194: 86219-BF_2.1.1.3.4 | B194: PUTUMAYO | C194: 86219 | D194: COLÓN - PUTUMAYO | E194: 52 | F194: BF_2.1.1.3.4 | G194: A Organismos de Control | H194: 206.821291 | I194: 253.494418
A195: 86219-BF_2.1.1.4 | B195: PUTUMAYO | C195: 86219 | D195: COLÓN - PUTUMAYO | E195: 56 | F195: BF_2.1.1.4 | G195: Déficit Fiscal de Vigencias Anteriores por Funcionamiento | H195: 111.875933
A196: 86219-BF_2.1.1.6 | B196: PUTUMAYO | C196: 86219 | D196: COLÓN - PUTUMAYO | E196: 58 | F196: BF_2.1.1.6 | G196: Otros Gastos de Funcionamiento | H196: 5.941355
A197: 86219-BF_2.1.4 | B197: PUTUMAYO | C197: 86219 | D197: COLÓN - PUTUMAYO | E197: 61 | F197: BF_2.1.4 | G197: GASTOS OPERATIVOS EN SECTORES SOCIALES (Remuneración al Trabajo, Prestaciones, y Subsidios en Sectores de Inversión) | H197: 5914.372784 | I197: 5995.468108
A198: 86219-BF_2.1.4.1 | B198: PUTUMAYO | C198: 86219 | D198: COLÓN - PUTUMAYO | E198: 62 | F198: BF_2.1.4.1 | G198: Educación | H198: 169.819121 | I198: 114.903057
A199: 86219-BF_2.1.4.2 | B199: PUTUMAYO | C199: 86219 | D199: COLÓN - PUTUMAYO | E199: 63 | F199: BF_2.1.4.2 | G199: Salud | H199: 4182.18547 | I199: 4550.125986
A200: 86219-BF_2.1.4.3 | B200: PUTUMAYO | C200: 86219 | D200: COLÓN - PUTUMAYO | E200: 64 | F200: BF_2.1.4.3 | G200: Agua Potable y Saneamiento Básico | H200: 186.39095 | I200: 236.694314
... 876 more rows

Sheet DAF_Ley358 (hidden)
A1: CONCATENACION | B1: DEPARTAMENTO | C1: CODIGO_DIVIPOLA_ENTIDAD | D1: NOMBRE_ENTIDAD | E1: CODIGO_INDICADOR | F1: NOMBRE_INDICADOR | G1: TOTAL
A2: =C2&"-"&E2 -> 86219-CAPEN.1.1 | B2: PUTUMAYO | C2: 86219 | D2: COLÓN - PUTUMAYO | E2: CAPEN.1.1 | F2: 1.1 Ingresos corrientes (sin descontar vigencias futuras) | G2: 2244.85826
A3: 86219-CAPEN.2 | B3: PUTUMAYO | C3: 86219 | D3: COLÓN - PUTUMAYO | E3: CAPEN.2 | F3: 2. Gastos de funcionamiento | G3: 1019.279012
A4: 86000-CAPEN.1.1 | B4: PUTUMAYO | C4: 86000 | D4: DEPARTAMENTO DEL PUTUMAYO | E4: CAPEN.1.1 | F4: 1.1 Ingresos corrientes (sin descontar vigencias futuras) | G4: 127311.4816
A5: 86000-CAPEN.2 | B5: PUTUMAYO | C5: 86000 | D5: DEPARTAMENTO DEL PUTUMAYO | E5: CAPEN.2 | F5: 2. Gastos de funcionamiento | G5: 34612.78745
A6: 86320-CAPEN.1.1 | B6: PUTUMAYO | C6: 86320 | D6: ORITO | E6: CAPEN.1.1 | F6: 1.1 Ingresos corrientes (sin descontar vigencias futuras) | G6: 15285.79061
A7: 86320-CAPEN.2 | B7: PUTUMAYO | C7: 86320 | D7: ORITO | E7: CAPEN.2 | F7: 2. Gastos de funcionamiento | G7: 7562.575247
A8: 86320-CAPEN.4.1.1 | B8: PUTUMAYO | C8: 86320 | D8: ORITO | E8: CAPEN.4.1.1 | F8: 4.1.1 Saldo de la deuda | G8: 118.024553
A9: 86320-CAPEN.4.2.1 | B9: PUTUMAYO | C9: 86320 | D9: ORITO | E9: CAPEN.4.2.1 | F9: 4.2.1 Amortizaciones de la deuda | G9: 118.024553
A10: 86568-CAPEN.1.1 | B10: PUTUMAYO | C10: 86568 | D10: PUERTO ASÍS | E10: CAPEN.1.1 | F10: 1.1 Ingresos corrientes (sin descontar vigencias futuras) | G10: 25689.50395
A11: 86568-CAPEN.2 | B11: PUTUMAYO | C11: 86568 | D11: PUERTO ASÍS | E11: CAPEN.2 | F11: 2. Gastos de funcionamiento | G11: 10290.4519
A12: 86568-CAPEN.4.1.1 | B12: PUTUMAYO | C12: 86568 | D12: PUERTO ASÍS | E12: CAPEN.4.1.1 | F12: 4.1.1 Saldo de la deuda | G12: 1835.220587
A13: 86568-CAPEN.4.2.1 | B13: PUTUMAYO | C13: 86568 | D13: PUERTO ASÍS | E13: CAPEN.4.2.1 | F13: 4.2.1 Amortizaciones de la deuda | G13: 1137.498698
A14: 86569-CAPEN.1.1 | B14: PUTUMAYO | C14: 86569 | D14: PUERTO CAICEDO | E14: CAPEN.1.1 | F14: 1.1 Ingresos corrientes (sin descontar vigencias futuras) | G14: 8520.383231
A15: 86569-CAPEN.2 | B15: PUTUMAYO | C15: 86569 | D15: PUERTO CAICEDO | E15: CAPEN.2 | F15: 2. Gastos de funcionamiento | G15: 2380.749287
A16: 86569-CAPEN.4.1.1 | B16: PUTUMAYO | C16: 86569 | D16: PUERTO CAICEDO | E16: CAPEN.4.1.1 | F16: 4.1.1 Saldo de la deuda | G16: 2219
A17: 86569-CAPEN.4.2.1 | B17: PUTUMAYO | C17: 86569 | D17: PUERTO CAICEDO | E17: CAPEN.4.2.1 | F17: 4.2.1 Amortizaciones de la deuda | G17: 634
A18: 86569-CAPEN.5.1 | B18: PUTUMAYO | C18: 86569 | D18: PUERTO CAICEDO | E18: CAPEN.5.1 | F18: 5.1 Intereses de la deuda | G18: 89.464797
A19: 86571-CAPEN.1.1 | B19: PUTUMAYO | C19: 86571 | D19: PUERTO GUZMÁN | E19: CAPEN.1.1 | F19: 1.1 Ingresos corrientes (sin descontar vigencias futuras) | G19: 8371.035652
A20: 86571-CAPEN.2 | B20: PUTUMAYO | C20: 86571 | D20: PUERTO GUZMÁN | E20: CAPEN.2 | F20: 2. Gastos de funcionamiento | G20: 2785.933056
A21: 86571-CAPEN.4.1.1 | B21: PUTUMAYO | C21: 86571 | D21: PUERTO GUZMÁN | E21: CAPEN.4.1.1 | F21: 4.1.1 Saldo de la deuda | G21: 3214.28564
A22: 86571-CAPEN.4.2.1 | B22: PUTUMAYO | C22: 86571 | D22: PUERTO GUZMÁN | E22: CAPEN.4.2.1 | F22: 4.2.1 Amortizaciones de la deuda | G22: 857.14288
A23: 86571-CAPEN.5.1 | B23: PUTUMAYO | C23: 86571 | D23: PUERTO GUZMÁN | E23: CAPEN.5.1 | F23: 5.1 Intereses de la deuda | G23: 151.278802
A24: 86573-CAPEN.1.1 | B24: PUTUMAYO | C24: 86573 | D24: PUERTO LEGUÍZAMO | E24: CAPEN.1.1 | F24: 1.1 Ingresos corrientes (sin descontar vigencias futuras) | G24: 7437.272072
A25: 86573-CAPEN.2 | B25: PUTUMAYO | C25: 86573 | D25: PUERTO LEGUÍZAMO | E25: CAPEN.2 | F25: 2. Gastos de funcionamiento | G25: 2698.897033
A26: 86573-CAPEN.4.1.1 | B26: PUTUMAYO | C26: 86573 | D26: PUERTO LEGUÍZAMO | E26: CAPEN.4.1.1 | F26: 4.1.1 Saldo de la deuda | G26: 85.679732
A27: 86573-CAPEN.4.2.1 | B27: PUTUMAYO | C27: 86573 | D27: PUERTO LEGUÍZAMO | E27: CAPEN.4.2.1 | F27: 4.2.1 Amortizaciones de la deuda | G27: 23.179734
A28: 86755-CAPEN.1.1 | B28: PUTUMAYO | C28: 86755 | D28: SAN FRANCISCO - PUTUMAYO | E28: CAPEN.1.1 | F28: 1.1 Ingresos corrientes (sin descontar vigencias futuras) | G28: 2948.827596
A29: 86755-CAPEN.2 | B29: PUTUMAYO | C29: 86755 | D29: SAN FRANCISCO - PUTUMAYO | E29: CAPEN.2 | F29: 2. Gastos de funcionamiento | G29: 897.468156
A30: 86755-CAPEN.4.1.1 | B30: PUTUMAYO | C30: 86755 | D30: SAN FRANCISCO - PUTUMAYO | E30: CAPEN.4.1.1 | F30: 4.1.1 Saldo de la deuda | G30: 960
A31: =C31&"-"&E31 -> 86755-CAPEN.4.2.1 | B31: PUTUMAYO | C31: 86755 | D31: SAN FRANCISCO - PUTUMAYO | E31: CAPEN.4.2.1 | F31: 4.2.1 Amortizaciones de la deuda | G31: 240
A32: 86755-CAPEN.5.1 | B32: PUTUMAYO | C32: 86755 | D32: SAN FRANCISCO - PUTUMAYO | E32: CAPEN.5.1 | F32: 5.1 Intereses de la deuda | G32: 89.024558
A33: 86757-CAPEN.1.1 | B33: PUTUMAYO | C33: 86757 | D33: SAN MIGUEL - PUTUMAYO | E33: CAPEN.1.1 | F33: 1.1 Ingresos corrientes (sin descontar vigencias futuras) | G33: 10315.24344
A34: 86757-CAPEN.2 | B34: PUTUMAYO | C34: 86757 | D34: SAN MIGUEL - PUTUMAYO | E34: CAPEN.2 | F34: 2. Gastos de funcionamiento | G34: 3248.696221
A35: 86001-CAPEN.1.1 | B35: PUTUMAYO | C35: 86001 | D35: SAN MIGUEL DE MOCOA | E35: CAPEN.1.1 | F35: 1.1 Ingresos corrientes (sin descontar vigencias futuras) | G35: 15930.11097
A36: 86001-CAPEN.1.2 | B36: PUTUMAYO | C36: 86001 | D36: SAN MIGUEL DE MOCOA | E36: CAPEN.1.2 | F36: 1.2 Vigencias futuras | G36: 100.420096
A37: 86001-CAPEN.2 | B37: PUTUMAYO | C37: 86001 | D37: SAN MIGUEL DE MOCOA | E37: CAPEN.2 | F37: 2. Gastos de funcionamiento | G37: 9210.294416
A38: 86760-CAPEN.1.1 | B38: PUTUMAYO | C38: 86760 | D38: SANTIAGO - PUTUMAYO | E38: CAPEN.1.1 | F38: 1.1 Ingresos corrientes (sin descontar vigencias futuras) | G38: 5819.31965
A39: 86760-CAPEN.2 | B39: PUTUMAYO | C39: 86760 | D39: SANTIAGO - PUTUMAYO | E39: CAPEN.2 | F39: 2. Gastos de funcionamiento | G39: 2153.599844
A40: 86760-CAPEN.4.1.1 | B40: PUTUMAYO | C40: 86760 | D40: SANTIAGO - PUTUMAYO | E40: CAPEN.4.1.1 | F40: 4.1.1 Saldo de la deuda | G40: 1428.57144
A41: 86760-CAPEN.4.2.1 | B41: PUTUMAYO | C41: 86760 | D41: SANTIAGO - PUTUMAYO | E41: CAPEN.4.2.1 | F41: 4.2.1 Amortizaciones de la deuda | G41: 142.85712
A42: 86749-CAPEN.1.1 | B42: PUTUMAYO | C42: 86749 | D42: SIBUNDOY | E42: CAPEN.1.1 | F42: 1.1 Ingresos corrientes (sin descontar vigencias futuras) | G42: 4789.916548
A43: 86749-CAPEN.2 | B43: PUTUMAYO | C43: 86749 | D43: SIBUNDOY | E43: CAPEN.2 | F43: 2. Gastos de funcionamiento | G43: 2014.164911
A44: 86749-CAPEN.4.1.1 | B44: PUTUMAYO | C44: 86749 | D44: SIBUNDOY | E44: CAPEN.4.1.1 | F44: 4.1.1 Saldo de la deuda | G44: 50
A45: 86749-CAPEN.4.2.1 | B45: PUTUMAYO | C45: 86749 | D45: SIBUNDOY | E45: CAPEN.4.2.1 | F45: 4.2.1 Amortizaciones de la deuda | G45: 50
A46: 86749-CAPEN.5.1 | B46: PUTUMAYO | C46: 86749 | D46: SIBUNDOY | E46: CAPEN.5.1 | F46: 5.1 Intereses de la deuda | G46: 2.157
A47: 86865-CAPEN.1.1 | B47: PUTUMAYO | C47: 86865 | D47: VALLE DEL GUAMUEZ (LA HORMIGA) | E47: CAPEN.1.1 | F47: 1.1 Ingresos corrientes (sin descontar vigencias futuras) | G47: 15550.97056
A48: 86865-CAPEN.1.2 | B48: PUTUMAYO | C48: 86865 | D48: VALLE DEL GUAMUEZ (LA HORMIGA) | E48: CAPEN.1.2 | F48: 1.2 Vigencias futuras | G48: 560.376218
A49: 86865-CAPEN.2 | B49: PUTUMAYO | C49: 86865 | D49: VALLE DEL GUAMUEZ (LA HORMIGA) | E49: CAPEN.2 | F49: 2. Gastos de funcionamiento | G49: 4224.646706
A50: 86865-CAPEN.4.1.1 | B50: PUTUMAYO | C50: 86865 | D50: VALLE DEL GUAMUEZ (LA HORMIGA) | E50: CAPEN.4.1.1 | F50: 4.1.1 Saldo de la deuda | G50: 639.209975
A51: 86865-CAPEN.4.2.1 | B51: PUTUMAYO | C51: 86865 | D51: VALLE DEL GUAMUEZ (LA HORMIGA) | E51: CAPEN.4.2.1 | F51: 4.2.1 Amortizaciones de la deuda | G51: 255.684
A52: 86865-CAPEN.5.1 | B52: PUTUMAYO | C52: 86865 | D52: VALLE DEL GUAMUEZ (LA HORMIGA) | E52: CAPEN.5.1 | F52: 5.1 Intereses de la deuda | G52: 31.085127
A53: 86885-CAPEN.1.1 | B53: PUTUMAYO | C53: 86885 | D53: VILLAGARZÓN (VILLA AMAZONICA) | E53: CAPEN.1.1 | F53: 1.1 Ingresos corrientes (sin descontar vigencias futuras) | G53: 16875.98261
A54: 86885-CAPEN.2 | B54: PUTUMAYO | C54: 86885 | D54: VILLAGARZÓN (VILLA AMAZONICA) | E54: CAPEN.2 | F54: 2. Gastos de funcionamiento | G54: 5017.375462
A55: 86885-CAPEN.4.1.1 | B55: PUTUMAYO | C55: 86885 | D55: VILLAGARZÓN (VILLA AMAZONICA) | E55: CAPEN.4.1.1 | F55: 4.1.1 Saldo de la deuda | G55: 3709.574451
A56: 86885-CAPEN.4.2.1 | B56: PUTUMAYO | C56: 86885 | D56: VILLAGARZÓN (VILLA AMAZONICA) | E56: CAPEN.4.2.1 | F56: 4.2.1 Amortizaciones de la deuda | G56: 594.221081

Sheet DAF_SaldoDeuda (hidden)
A1: DEPARTAMENTO | B1: CODIGO_DIVIPOLA_ENTIDAD | C1: NOMBRE_ENTIDAD | D1: SALDO
A2: PUTUMAYO | B2: 86320 | C2: ORITO | D2: 118.025
A3: PUTUMAYO | B3: 86568 | C3: PUERTO ASÍS | D3: 1835.221
A4: PUTUMAYO | B4: 86569 | C4: PUERTO CAICEDO | D4: 2219
A5: PUTUMAYO | B5: 86571 | C5: PUERTO GUZMÁN | D5: 3214.286
A6: PUTUMAYO | B6: 86573 | C6: PUERTO LEGUÍZAMO | D6: 85.68
A7: PUTUMAYO | B7: 86755 | C7: SAN FRANCISCO - PUTUMAYO | D7: 960
A8: PUTUMAYO | B8: 86760 | C8: SANTIAGO - PUTUMAYO | D8: 1428.571
A9: PUTUMAYO | B9: 86749 | C9: SIBUNDOY | D9: 50
A10: PUTUMAYO | B10: 86865 | C10: VALLE DEL GUAMUEZ (LA HORMIGA) | D10: 639.21
A11: PUTUMAYO | B11: 86885 | C11: VILLAGARZÓN (VILLA AMAZONICA) | D11: 3709.574

Sheet Entidad
A5: FORMULACION PLAN FINANCIERO DEL MARCO FISCAL DE MEDIANO PLAZO
A8: Departamento: | B8: =DatosBasicos!B2 -> PUTUMAYO
A10: Entidad Territorial: | B10: DEPARTAMENTO DEL PUTUMAYO
A12: Código DANE: | B12: =IFERROR(VLOOKUP(DatosBasicos!B2&"-"&Entidad!B10,EntidadesTerritoriales!A2:E1134,3,FALSE),"") -> 86000
A14: Vigencia Fiscal: | B14: =DatosBasicos!A2 -> 2021
A16: Categoría: | B16: =IFERROR(VLOOKUP(DatosBasicos!B2&"-"&Entidad!B10,EntidadesTerritoriales!A2:E1134,5,FALSE),"") -> 4
A19: Elaboración de este instrumento - V_2021_1 Dirección General de Apoyo Fiscal - Ministerio de Hacienda y Crédito Público Arcesio Valenzuela Ordoñez Coordinador Grupo de Apoyo Ing. Gilberto Enrique Tejada Lema Contratista

Sheet Descripción Glosario
A3: Herramienta: Plan Financiero
A5: 1. Descripción Estructura de la Herramienta:
B6: Hoja "Histórico Deptos" = Estructura del Plan Financiero formulado por el DNP que contiene la información de ingresos y gastos de las últimas cuatro (4) vigencias para el Departamento. Esta información permite evaluar las variaciones y composiciones y tomar estos datos como referencia para las proyecciones.
B7: Hoja "Histórico Mpios" = Estructura del Plan Financiero formulado por el DNP que contiene la información de ingresos y gastos de las últimas cuatro (4) vigencias para Municipios. Esta información permite evaluar las variaciones y composiciones y tomar estos datos como referencia para las proyecciones.
B8: Hoja "Restricciones_Pptales_ET" = Relación de las Restricciones Presupuestales de la Entidad Territorial, derivadas de la Ejecución de Programas de Saneamiento Fiscal, la aprobación de Vigencias Futuras, la existencia de pasivos ciertos y exigibles de vigencias anteriores y la determinación de los pasivos contingentes. Incluye la determinación de Ingresos Corrientes de Libre Destinación y límites del gasto.
B9: Hoja "Ingresos" = Contiene la información del Presupuesto Definitivo y los Recaudos de la Entidad Territorial, con corte al mes de Marzo de la vigencia, reportados a través del FUT. La columna H de la hoja permite digitar, en cada una de las celdas resaltadas en amarillo, los valores proyectados de los recaudos que se obtendrán por cada concepto entre el mes de abril y diciembre de la vigencia. En la columna I se obtiene el total del ingreso proyectado para la vigencia. Finalmente, la columna J permite digitar, en cada una de las celdas resaltadas en amarillo, los valores del proyecto de presupuesto de ingresos para cada concepto en la siguiente vigencia.
B10: Hoja "Gastos" = Contiene la información del Presupuesto Definitivo y los Compromisos de la Entidad Territorial, con corte al mes de Marzo de la vigencia, reportados a través del FUT. La columna E de la hoja permite digitar, en cada una de las celdas resaltadas en amarillo, los valores de los compromisos que se proyectan adquirir por cada concepto entre el mes de abril y diciembre de la vigencia. En la columna I se obtiene el total de los compromisos proyectados para la vigencia. Finalmente, la columna G permite digitar, en cada una de las celdas resaltadas en amarillo, los valores del proyecto de presupuesto de gastos para cada concepto en la siguiente vigencia.
B11: Hoja "Supuestos Macro Nación" = Contiene la información de los supuestos Macroeconómicos utilizados por la Nación en la formulación del Marco Fiscal de Mediano Plazo, los cuales sirven de referencia para efectuar proyecciones en las Entidades Territoriales. Indicadores como el IPC y la Tasa Representativa del Mercado son el referente para las proyecciones de escenarios en términos de inflación, la capacidad legal de endeudamiento, la valoración del saldo de la deuda cuando se tienen créditos en moneda externa.
B12: Hoja "Plan Financiero" = Contiene la estructura del Plan Financiero formulado por el Ministerio de Hacienda y Crédito Público con base en el Balance Financiero de operaciones efectivas. Las columnas E y F contienen los resultados financieros de la entidad con corte al 31 de diciembre de los años allí observados, cuyos datos permiten efectuar el análisis desde la perspectiva del Balance Financiero. Con base en la ejecución presupuestal a junio y las estimaciones de julio a diciembre de la vigencia actual, la columna G permite registrar el resultado que se proyecta para la vigencia actual. Con base en los "Supuestos Macro Nación" y los demás indicadores o supuestos económicos, en las columnas H y siguientes, se pueden registrar los datos de las proyecciones de ingresos y gastos, para cada una de las vigencias que corresponden al Plan Financiero del MFMP. Debe tenerse en cuenta que los ingresos correspondientes a los recursos del Sistema General de Participaciones - SGP, los de Fosyga y Etesa, se proyectan con la regla establecida por el DNP que corresponde al valor asignado en el Conpes del año anterior. Para la proyección de los demás conceptos de ingresos y gastos que no utilizan el incremento en términos de inflación o de la regla del SGP, deberán atender los lineamientos de la Cartilla del Marco Fiscal de Mediano Plazo.
B13: Hoja "Superávit Primario" = Contiene la información de las Metas del Superávit Primario de acuerdo con la formula establecida por la Ley 819 de 2003, obtenidas con base en las proyecciones del Plan Financiero. Esta información, es igual a la que se observa en las filas 111 y 112 de la Hoja "Plan Financiero" y se debe llevar al documento del Marco Fiscal de Mediano Plazo, en el punto referenciado a las Metas del Superávit Primario para el análisis de la sostenibilidad de la deuda.
B14: Hoja "Capacidad de Endeudamiento" = Contiene la información de las proyecciones de los ingresos corrientes, los gastos de funcionamiento y demás conceptos que aplican para obtener un referente de la capacidad legal de endeudamiento de que trata la Ley 358 de 1997 y demás normas reglamentarias. Los resultados se obtienen con base en las ejecuciones presupuestales reportadas por la ET en la vigencia anterior a través del FUT. Así mismo, permite proyectar los indicadores de Solvencia y Sostenibilidad de la Deuda de acuerdo con los datos que se pueden incluir en las celdas resaltadas en amarillo; para lo cual se deberán observar las respectivas notas de cada celda. De acuerdo con lo establecido en la Ley 819 de 2003, las estimaciones de los indicadores deberán tener en cuenta los porcentajes de cobertura de riesgo y de tasa de cambio que defina la Superintendencia Financiera. Los indicadores de capacidad de pago aquí presentados son datos indicativos, basados en información histórica reportada por la ET. La responsabilidad legal de efectuar los cálculos de los indicadores de capacidad de pago de las entidades territoriales corresponde a las administraciones territoriales y sus potenciales prestamistas, quienes deben realizar la estimación para todo el periodo de vigencia de cada una de las operaciones crediticias objeto de contratación
B15: Hoja "Gráficos Deptos" = Contiene la información gráfica de los datos históricos de los últimos cuatro años para departamentos, cuya información es base para la elaboración del diagnóstico de la situación financiera de la ET y del aparte de los resultados de la vigencia anterior del MFMP.
B16: Hoja "Gráficos Mpios" = Contiene la información gráfica de los datos históricos de los últimos cuatro años para municipios, cuya información es base para la elaboración del diagnóstico de la situación financiera de la ET y del aparte de los resultados de la vigencia anterior del MFMP.
A18: 2. Glosario
A19: 1. | B19: CÓDIGO PROGRAMA | C19: Identificador Programa priorizado durante la vigencia Fiscal
A20: 2. | B20: PROGRAMA | C20: Nombre del Programa
A21: 3. | B21: CÓDIGO PROYECTO BPIM | C21: Código BPIM del proyecto registrado (13 Dígitos: Año (4 dígitos), Departamento (2 dígitos), Municipio (3 dígitos), Número de radicación (4 dígitos)
A22: 4. | B22: PROYECTO | C22: Nombre del proyecto registrado
A23: 5. | B23: OBJETIVO | C23: Objetivo del proyecto registrado
A24: 6. | B24: DESCRIPCIÓN META DE PRODUCTO | C24: Bien o servicio a proveer en el cuatrienio (Plan Territorial de Desarrollo)
A25: 7. | B25: META DE LA VIGENCIA | C25: Definición de la meta a ejecutar durante la vigencia fiscal
A26: 8. | B26: SECTOR FUT | C26: Corresponde al código del Sector FUT. Ejemplo: A.1
A27: 9. | B27: Recursos Propios | C27: Impuestos del orden departamental y/o municipal existentes según las normas legales vigentes más los ingresos municipales, distritales y departamentales por concepto de tasas y tarifas, multas y sanciones, contribuciones, entre otras.
A28: 10. | B28: SGP Alimentación Escolar | C28: Recursos asignados a la financiación de los programas de alimentación escolar.
A29: 11. | B29: SGP APSB | C29: Recursos para financiar programas destinados al agua potable y saneamiento básico conforme a lo establecido en la Ley 1176/07
A30: 12. | B30: SGP Cultura | C30: Sistema General Forzosa Inversión destinado a cultura
A31: 13. | B31: SGP Deporte | C31: Sistema General Forzosa Inversión destinado a deporte y recreación
A32: 14. | B32: SGP Educación | C32: Recursos asignados para la prestación del servicio educativo, incluye los recursos asignados por concepto de los criterios de población atendida, población por atender, calidad y transferencias para atender prestaciones de personal nacionalizado
A33: 15. | B33: SGP Libre Destinación 42% Mpios 4, 5 y 6 Cat | C33: Recursos que se destinan libremente para inversión o funcionamiento de municipio, hasta el cuarenta y dos (42%) de los recursos que perciban por la Participación de Propósito General de las categorías 4, 5 y 6.
A34: 16. | B34: SGP Libre Inversión | C34: La Participación de Propósito General tiene el objeto de proveer a los municipios de recursos para financiar las competencias asignadas por el artículo 76 de la Ley 715 de 2001, incluyendo los sectores de educación y salud.
A35: 17. | B35: SGP Municipios Ribereños | C35: Recursos asignados a municipios y distritos que tengan ribera sobre el Río Grande de la Magdalena, de conformidad con la certificación del IGAC.
A36: 18. | B36: SGP Salud | C36: Recursos destinados al desarrollo de actividades para el aseguramiento de la población al SGSSS, a la atención de la población pobre en lo no cubierto con subsidios a la demanda y programas de promoción y prevención de la salud.
A37: 19. | B37: Regalías | C37: Regalías y Compensaciones (Régimen Anterior de Regalías Ley 141/94 y 756/02) y Sistema General de Regalías (ley 1530 de 2012)
A38: 20. | B38: Cofinanciación Departamento | C38: Desembolsos del nivel central departamental para cofinanciación de proyectos de inversión en diversos sectores. Incluidos en el Plan financiero y Plan Plurianual de Inversiones si se tiene asegurada la fuente, mediante afectación presupuestal (registro presupuestal).
A39: 21. | B39: Cofinanciación Nación | C39: Desembolsos del nivel central nacional para cofinanciación de proyectos de inversión en diversos sectores. Incluidos en el Plan financiero y Plan Plurianual de Inversiones si se tiene asegurada la fuente, mediante afectación presupuestal (registro presupuestal).
A40: 22. | B40: Crédito | C40: Ingresos originados en la realización de operaciones de crédito público con entidades financieras nacionales, con plazo de vencimiento mayor a un año.
A41: 23. | B41: Otros | C41: Ingresos no clasificados en las demás definiciones de fuentes de financiación.
A42: 24. | B42: TOTAL | C42: Sumatoria de las fuentes anteriores
A43: 25. | B43: Dependencia | C43: Dependencia o secretaría responsable
A44: 26. | B44: Responsables | C44: Funcionario responsable

Sheet Supuestos Macro Nación
B1: Fecha: | D1: 2021-06-03
A2: SUPUESTOS GENERALES BASICOS | E2: 2019 | F2: 2020 | G2: 2021 | H2: 2022 | I2: 2023 | J2: 2024 | K2: 2025 | L2: 2026 | M2: 2027 | N2: 2028 | O2: 2029 | P2: 2030 | Q2: 2031 | R2: 2032
A4: INFLACION
B6: INFLACION DOMESTICA
B7: IPC fin de período | E7: 3.8 | F7: 1.61 | G7: 3 | H7: 2.8 | I7: 3 | J7: 3 | K7: 3 | L7: 3 | M7: 3 | N7: 3 | O7: 3 | P7: 3 | Q7: 3 | R7: 3
B8: INFLACIÓN USA
B9: IPC fin de período | E9: 1.8 | F9: 1.3 | G9: 2.3 | H9: 2.4 | I9: 2 | J9: 2 | K9: 2 | L9: 2 | M9: 2 | N9: 2 | O9: 2 | P9: 2 | Q9: 2 | R9: 2
A11: DEVALUACION
B13: TASA DE CAMBIO REP DEL MERCADO
C14: Fin de Período | E14: 3277.14 | F14: 3432.5 | G14: 3738.216574 | H14: 3743.858853 | I14: 3822.479889 | J14: 3902.751967 | K14: 3984.709758 | L14: 4068.388663 | M14: 4153.824825 | N14: 4241.055146 | O14: 4330.117304 | P14: 4421.049768 | Q14: 4513.891813 | R14: 4608.683541
D15: Depreciación (%) | E15: 0.8428340642 | F15: 4.740719042 | G15: 8.90652801 | H15: 0.1509350576 | I15: 2.1 | J15: 2.1 | K15: 2.1 | L15: 2.1 | M15: 2.1 | N15: 2.1 | O15: 2.1 | P15: 2.1 | Q15: 2.1 | R15: 2.1
C16: Promedio Período | E16: 3282.39 | F16: 3694 | G16: 3666.8549 | H16: 3743.858853 | I16: 3822.479889 | J16: 3902.751967 | K16: 3984.709758 | L16: 4068.388663 | M16: 4153.824825 | N16: 4241.055146 | O16: 4330.117304 | P16: 4421.049768 | Q16: 4513.891813 | R16: 4608.683541
D17: Depreciación (%) | E17: 11.02095348 | F17: 12.53994803 | G17: -0.7348429786 | H17: 2.1 | I17: 2.1 | J17: 2.1 | K17: 2.1 | L17: 2.1 | M17: 2.1 | N17: 2.1 | O17: 2.1 | P17: 2.1 | Q17: 2.1 | R17: 2.1
D19: Depreciación Real (%) | E19: 8.865251651 | F19: 12.19660206 | G19: -1.409460551 | H19: 1.702723735 | I19: 1.108737864 | J19: 1.108737864 | K19: 1.108737864 | L19: 1.108737864 | M19: 1.108737864 | N19: 1.108737864 | O19: 1.108737864 | P19: 1.108737864 | Q19: 1.108737864 | R19: 1.108737864
A21: PRODUCTO INTERNO BRUTO (PIB)
B23: PIB Interno Nominal ($ Millones) | E23: 1061119000 | F23: 1002922316 | G23: 1109263907 | H23: 1197324454 | I23: 1280600765 | J23: 1367031071 | K23: 1457886690 | L23: 1553580301 | M23: 1652275917 | N23: 1757539789 | O23: 1869770025 | P23: 1989147119 | Q23: 2115248321 | R23: 2249084515
C24: Variación porcentual | E24: 7.42343269 | F24: -5.484463518 | G24: 10.60317337 | H24: 7.938647065 | I24: 6.9552 | J24: 6.7492 | K24: 6.6462 | L24: 6.563857928 | M24: 6.352784952 | N24: 6.37084105 | O24: 6.385644093 | P24: 6.384586983 | Q24: 6.339460827 | R24: 6.327209534
B25: PIB Interno Real ($ Millones de 2015) | E25: 882029000 | F25: 822088442.7 | G25: 871007862.2 | H25: 908882554.9 | I25: 943783645 | J25: 978137369.7 | K25: 1012763433 | L25: 1047805617 | M25: 1081913063 | N25: 1117320412 | O25: 1154047104 | P25: 1191969170 | Q25: 1230615134 | R25: 1270367701
C26: Variación porcentual | E26: 3.281116805 | F26: -6.795758107 | G26: 5.950627324 | H26: 4.348375523 | I26: 3.84 | J26: 3.64 | K26: 3.54 | L26: 3.460056241 | M26: 3.255131021 | N26: 3.272661214 | O26: 3.2870331 | P26: 3.286006779 | Q26: 3.242194978 | R26: 3.230300519
B27: Deflactor Implícito (Variación) | E27: 4.010719494 | F27: 1.406904409 | G27: 4.391239736 | H27: 3.440658778 | I27: 3 | J27: 3 | K27: 3 | L27: 3 | M27: 3 | N27: 3 | O27: 3 | P27: 3 | Q27: 3 | R27: 3
B29: PIB Interno. (US$ Millones) | E29: 323276.3322 | F29: 271500.3561 | G29: 302510.9904 | H29: 319810.2549 | I29: 335018.3131 | J29: 350273.6231 | K29: 365870.2337 | L29: 381866.2449 | M29: 397772.1706 | N29: 414410.9729 | O29: 431805.8597 | P29: 449926.4255 | Q29: 468608.5553 | R29: 488010.1866
C30: Variación porcentual | E30: -3.240398027 | F30: -16.01601197 | G30: 11.42194975 | H30: 5.71855736 | I30: 4.755337904 | J30: 4.553574927 | K30: 4.452693438 | L30: 4.372044983 | M30: 4.165313371 | N30: 4.18299809 | O30: 4.197496663 | P30: 4.196461296 | Q30: 4.152263298 | R30: 4.14026399
A32: DEMANDA EXTERNA
B34: Crecimiento económico socios | E34: 1.867760651 | F34: -4.278993187 | G34: 6.014688588 | H34: 3.847703015 | I34: 2.640364959 | J34: 2.555893071 | K34: 2.555893071 | L34: 2.555893071 | M34: 2.555893071 | N34: 2.555893071 | O34: 2.555893071 | P34: 2.555893071 | Q34: 2.555893071 | R34: 2.555893071
A36: PRECIOS EXPORTACIONES PRODUCTOS
B38: Petróleo Brent (Precio promedio US$ por barril) | E38: 64.16 | F38: 43.25 | G38: 63 | H38: 63 | I38: 62.96285999 | J38: 63.39500337 | K38: 64.29000613 | L38: 66.25652207 | M38: 66.82189758 | N38: 69.0407157 | O38: 70.86016611 | P38: 72.69471978 | Q38: 74.51649322 | R38: 76.32366575
B39: Petróleo Canasta Colombiana (Precio promedio ) | E39: 58.56 | F39: 34.45 | G39: 58.2 | H39: 55.91802147 | I39: 54.55413928 | J39: 54.84501936 | K39: 55.56189271 | L39: 57.32060955 | M39: 57.65902868 | N39: 59.63649861 | O39: 61.2081169 | P39: 62.7927812 | Q39: 64.36640611 | R39: 65.92741892
B40: Carbón implícito (US$ por Tonelada) | E40: 75.85680175 | F40: 58.39600578 | G40: 72.64463119 | H40: 69.17715153 | I40: 67.98103327 | J40: 68.07497693 | K40: 68.02432783 | L40: 67.73823756 | M40: 69.09300231 | N40: 70.47486236 | O40: 71.88435961 | P40: 73.3220468 | Q40: 74.78848774 | R40: 76.28425749
A42: EXPORTACIONES
B44: Totales BoP - Valor (US$ Millones) | E44: 42079.43204 | F44: 33272.55425 | G44: 40579.55627 | H44: 44248.34736 | I44: 46799.10824 | J44: 49047.31771 | K44: 51084.62614 | L44: 54465.78325 | M44: 56759.20562 | N44: 58597.5081 | O44: 60763.0506 | P44: 63740.94442 | Q44: 67115.13163 | R44: 71427.87326
B45: Crecimiento (Variación %) | E45: -4.925258468 | F45: -20.92917458 | G45: 21.96104925 | H45: 9.040983749 | I45: 5.764646676 | J45: 4.803957918 | K45: 4.153761147 | L45: 6.618737122 | M45: 4.210758087 | N45: 3.238774136 | O45: 3.695622173 | P45: 4.90083002 | Q45: 5.293594618 | R45: 6.425885688
B47: -Petróleo Crudo | E47: 12979.69932 | F47: 7125.996898 | G47: 11060.10528 | H47: 11561.57413 | I47: 12053.66746 | J47: 12048.45346 | K47: 11797.66508 | L47: 12505.15169 | M47: 12111.47021 | N47: 11181.98408 | O47: 10328.99959 | P47: 9928.172667 | Q47: 9638.773049 | R47: 9872.532384
B48: Crecimiento (Variación %) | E48: -5.967979753 | F48: -45.0989062 | G48: 55.20783176 | H48: 4.534033273 | I48: 4.25628314 | J48: -0.04325654413 | K48: -2.081498513 | L48: 5.996835892 | M48: -3.148154394 | N48: -7.67442857 | O48: -7.628203371 | P48: -3.880597769 | Q48: -2.914933363 | R48: 2.425198032
B49: -Otras tradicionales (Derivados, carbón, ferroníquel, café, flores, banano y oro) | E49: 15618.12045 | F49: 13953.45954 | G49: 15967.83801 | H49: 17854.08499 | I49: 18619.01846 | J49: 19455.31314 | K49: 20201.74927 | L49: 21198.28379 | M49: 22060.87133 | N49: 22843.81204 | O49: 23703.07024 | P49: 24732.77386 | Q49: 25840.92084 | R49: 27139.90095
B50: Crecimiento (Variación %) | E50: -8.448925836 | F50: -10.65852271 | G50: 14.43640885 | H50: 11.81278884 | I50: 4.284361091 | J50: 4.491615289 | K50: 3.836669787 | L50: 4.932912058 | M50: 4.069138547 | N50: 3.549001771 | O50: 3.761448397 | P50: 4.344178243 | Q50: 4.480479971 | R50: 5.026833661
B51: -No tradicionales | E51: 10885.05179 | F51: 9949.625886 | G51: 11058.18074 | H51: 12103.54425 | I51: 13159.23742 | J51: 14315.62126 | K51: 15573.62372 | L51: 16942.17466 | M51: 18430.98867 | N51: 20050.634 | O51: 21812.60761 | P51: 23729.41678 | Q51: 25814.66786 | R51: 28083.1629
B52: Crecimiento (Variación %) | E52: -1.422996048 | F52: -8.59367438 | G52: 11.14167375 | H52: 9.453304559 | I52: 8.722182141 | J52: 8.787620451 | K52: 8.787620451 | L52: 8.787620451 | M52: 8.787620451 | N52: 8.787620451 | O52: 8.787620451 | P52: 8.787620451 | Q52: 8.787620451 | R52: 8.787620451
B53: -Reexportaciones y otras transacciones | E53: 2596.560478 | F53: 2243.471924 | G53: 2493.432246 | H53: 2729.143991 | I53: 2967.1849 | J53: 3227.929848 | K53: 3511.588071 | L53: 3820.173102 | M53: 4155.875415 | N53: 4521.077973 | O53: 4918.373146 | P53: 5350.58111 | Q53: 5820.76987 | R53: 6332.277034
B54: Crecimiento (Variación %) | E54: 10.29547841 | F54: -13.59831811 | G54: 11.14167375 | H54: 9.453304559 | I54: 8.722182141 | J54: 8.787620451 | K54: 8.787620451 | L54: 8.787620451 | M54: 8.787620451 | N54: 8.787620451 | O54: 8.787620451 | P54: 8.787620451 | Q54: 8.787620451 | R54: 8.787620451
A56: IMPORTACIONES
B58: Valor (US$ Millones FOB) | E58: 50708.36996 | F58: 41289.75526 | G58: 47854.82634 | H58: 50618.05353 | I58: 53062.57714 | J58: 55448.79298 | K58: 57850.16987 | L58: 60278.68979 | M58: 62603.87758 | N58: 65036.99501 | O58: 67580.20947 | P58: 70221.72147 | Q58: 72915.35542 | R58: 75697.90153
B59: Crecimiento (Variación %) | E59: 2.370827286 | F59: -18.57408296 | G59: 15.9 | H59: 5.774187051 | I59: 4.829351265 | J59: 4.496984442 | K59: 4.330801031 | L59: 4.197947765 | M59: 3.857396044 | N59: 3.886528316 | O59: 3.910412007 | P59: 3.908706432 | Q59: 3.835898486 | R59: 3.816131868
A61: CUENTA CORRIENTE
B63: Valor (US$ Millones) | E63: -14507.79465 | F63: -9326.020795 | G63: -11473.78067 | H63: -11298.37593 | I63: -11312.04688 | J63: -11796.80919 | K63: -12557.16486 | L63: -12129.24804 | M63: -12447.02334 | N63: -12923.31338 | O63: -13123.83264 | P63: -12606.84648 | Q63: -11630.14064 | R63: -10072.4099
B64: % del PIB | E64: -4.487737953 | F64: -3.434993946 | G64: -3.792847545 | H64: -3.532837288 | I64: -3.376545828 | J64: -3.367883967 | K64: -3.432136234 | L64: -3.176307987 | M64: -3.129184054 | N64: -3.118477603 | O64: -3.039290075 | P64: -2.801979562 | Q64: -2.481845564 | R64: -2.063975338
A66: CUENTA CAPITAL (sin variación en activos de reserva)
B68: Valor (US$ Millones) | E68: -16737.97741 | F68: -12959.29659 | G68: -11859.23925 | H68: -11947.96199 | I68: -11968.73482 | J68: -12460.67667 | K68: -13228.29036 | L68: -12807.71092 | M68: -13132.90382 | N68: -13616.69255 | O68: -13824.79249 | P68: -13315.4699 | Q68: -12346.51139 | R68: -10796.6127
B69: % del PIB | E69: -5.177606816 | F69: -4.773215317 | G69: -3.920267239 | H69: -3.735953367 | I69: -3.572561364 | J69: -3.557412219 | K69: -3.615568894 | L69: -3.353978282 | M69: -3.301614539 | N69: -3.285794402 | O69: -3.201622253 | P69: -2.959477182 | Q69: -2.634717453 | R69: -2.212374453
A71: INVERSIÓN EXTRANJERA DIRECTA
B73: IED Bruta (US$ Millones) | E73: 14313.20846 | F73: 8099.505752 | G73: 11175.48516 | H73: 12953.14973 | I73: 13462.6607 | J73: 13995.09556 | K73: 14556.94262 | L73: 15156.6797 | M73: 15834.22218 | N73: 16480.98773 | O73: 16903.73624 | P73: 17484.63581 | Q73: 18127.11362 | R73: 18949.38459
B74: % del PIB | E74: 4.427546045 | F74: 2.983239458 | G74: 3.694241042 | H74: 4.050260908 | I74: 4.018485012 | J74: 3.995475148 | K74: 3.978717393 | L74: 3.969106959 | M74: 3.980726494 | N74: 3.976967023 | O74: 3.914661152 | P74: 3.88611 | Q74: 3.868284822 | R74: 3.882989559
B75: IED Neta (US$ Millones) | E75: 11159.71197 | F75: 6355.174877 | G75: 8383.705538 | H75: 9684.369945 | I75: 9940.471444 | J75: 10210.63866 | K75: 10498.13538 | L75: 10810.88277 | M75: 11188.21391 | N75: 11520.93735 | O75: 11615.17579 | P75: 11852.43081 | Q75: 12135.43231 | R75: 12581.66587
B76: % del PIB | E76: 3.452065883 | F76: 2.340761157 | G76: 2.771372216 | H76: 3.028161167 | I76: 2.967142707 | J76: 2.915046406 | K76: 2.869360339 | L76: 2.831065304 | M76: 2.812719122 | N76: 2.78007536 | O76: 2.689906941 | P76: 2.634304219 | Q76: 2.589673658 | R76: 2.578156403
A78: RESERVAS
B80: Saldo (US$ Millones) | E80: 53173.48447 | F80: 59039.3 | G80: 59424.75858 | H80: 60074.34463 | I80: 60731.03257 | J80: 61394.90005 | K80: 62066.02555 | L80: 62744.48843 | M80: 63430.36892 | N80: 64123.74809 | O80: 64824.70795 | P80: 65533.33136 | Q80: 66249.70211 | R80: 66973.90491
B81: Variación BoP (US$ Millones) | E81: 3333.164249 | F81: 4328.495804 | G81: 385.4585784 | H81: 649.5860518 | I81: 656.6879416 | J81: 663.8674759 | K81: 671.1255038 | L81: 678.4628833 | M81: 685.8804819 | N81: 693.3791768 | O81: 700.9598545 | P81: 708.6234113 | Q81: 716.3707534 | R81: 724.2027968
B82: Saldo de Reservas % PIB | E82: 16.44830728 | F82: 21.74557 | G82: 19.64383459 | H82: 18.78437096 | I82: 18.12767547 | J82: 17.52769721 | K82: 16.96394509 | L82: 16.43101198 | M82: 15.94640691 | N82: 15.47346771 | O82: 15.01246602 | P82: 14.56534394 | Q82: 14.13753577 | R82: 13.72387437
B107: Estados Unidos
B108: Socios comerciales | E108: 1.8 | F108: 0.6 | G108: 2.2 | H108: 2 | I108: 0 | J108: 0 | K108: 0 | L108: 0 | M108: 0 | N108: 0 | O108: 0 | P108: 0 | Q108: 0
B112: INFLACION EXTERNA
E113: 2.05125 | F113: 1.804 | G113: 2.25625 | H113: 2.2245 | I113: 2.245 | J113: 2.245 | K113: 2.245 | L113: 2.245 | M113: 2.245 | N113: 2.245 | O113: 2.245 | P113: 2.245 | Q113: 2.3
B115: Exportaciones totales (crecimiento 6 socios principales) | E115: 1.710563278 | F115: 3.652031293 | G115: 3.957838395 | H115: 3.31438926 | I115: 3.265306387 | J115: 2.93089781 | K115: 2.93089781 | L115: 2.93089781 | M115: 2.93089781 | N115: 2.93089781 | O115: 2.93089781 | P115: 2.93089781 | Q115: 0

Sheet Plan Financiero
C1: BALANCE FINANCIERO DEPARTAMENTO
C2: =+Entidad!B10 -> DEPARTAMENTO DEL PUTUMAYO
C3: Valores en millones de pesos
A4: Tipo | B4: Categoría FUT | C4: Cuenta | D4: Descripción | E4: =VALUE(DatosBasicos!A2)-2 -> 2019 | F4: =E4+1 -> 2020 | G4: =F4+1 -> 2021 | H4: 2022 | I4: 2023 | J4: 2024 | K4: 2025 | L4: 2026 | M4: 2027 | N4: 2028 | O4: 2029 | P4: 2030 | Q4: 2031 | R4: =Q4+1 -> 2032
A5: P | B5: NA | C5: BF_1 | D5: INGRESOS TOTALES | E5: =E6+E75 -> 426318.1535 | F5: 455805.5398 | G5: =G6+G75 -> 468620.2567 | H5: 465998 | I5: 450828.6593 | J5: 543586 | K5: 647830 | L5: 667264.9 | M5: 687282.847 | N5: 707901.3324 | O5: 729138.3724 | P5: 751012.5236 | Q5: =Q6+Q75 -> 773542.8993 | R5: =R6+R75 -> 796749.1862
A6: P | B6: NA | C6: BF_1.1 | D6: INGRESOS CORRIENTES | E6: =E7+E20+E23 -> 377573.1426 | F6: 423750.615 | G6: =G7+G20+G23 -> 447982.7106 | H6: 449211 | I6: 434010.7228 | J6: 529045 | K6: 626949 | L6: 645757.47 | M6: 665130.1941 | N6: 685084.0999 | O6: 705636.6229 | P6: 726805.7216 | Q6: =Q7+Q20+Q23 -> 748609.8933 | R6: =R7+R20+R23 -> 771068.1901
A7: P | B7: NA | C7: BF_1.1.1 | D7: TRIBUTARIOS | E7: =SUM(E8:E19) -> 43139.56913 | F7: 43045.51889 | G7: =SUM(G8:G19) -> 47577.30942 | H7: 53481 | I7: 50852.54589 | J7: 56368 | K7: 58983 | L7: 60752.49 | M7: 62575.0647 | N7: 64452.31664 | O7: 66385.88614 | P7: 68377.46272 | Q7: =SUM(Q8:Q19) -> 70428.78661 | R7: =SUM(R8:R19) -> 72541.6502
A8: H | B8: INGRESOS | C8: BF_1.1.1.1 | D8: Vehículos Automotores | E8: =IFERROR(VLOOKUP(Entidad!$B$12&"-"&'Plan Financiero'!$C8,DAF_BalanceFinanciero!$A$2:$I$1076,COLUMN(DAF_BalanceFinanciero!H$1),FALSE),0) -> 914.9438 | F8: =IFERROR(VLOOKUP(Entidad!$B$12&"-"&'Plan Financiero'!$C8,DAF_BalanceFinanciero!$A$2:$I$1076,COLUMN(DAF_BalanceFinanciero!I$1),FALSE),0) -> 1164.0651 | G8: 1267.5314 | H8: 1620 | I8: 1611.1289 | J8: 1706 | K8: 1908 | L8: =(K8*3%)+K8 -> 1965.24 | M8: =(L8*3%)+L8 -> 2024.1972 | N8: 2084.923116 | O8: 2147.470809 | P8: 2211.894934 | Q8: 2278.251782 | R8: 2346.599335 | S8: 2416.997315
A9: H | B9: INGRESOS | C9: BF_1.1.1.2 | D9: Impuesto Predial Unificado | E9: =IFERROR(VLOOKUP(Entidad!$B$12&"-"&'Plan Financiero'!$C9,DAF_BalanceFinanciero!$A$2:$I$1076,COLUMN(DAF_BalanceFinanciero!H$1),FALSE),0) -> 0 | F9: =IFERROR(VLOOKUP(Entidad!$B$12&"-"&'Plan Financiero'!$C9,DAF_BalanceFinanciero!$A$2:$I$1076,COLUMN(DAF_BalanceFinanciero!I$1),FALSE),0) -> 0 | G9: 0 | H9: 0 | I9: 0 | J9: 0 | K9: =(J9*5.7%)+J9 -> 0 | L9: =(K9*3%)+K9 -> 0 | M9: 0 | N9: 0 | O9: 0 | P9: 0 | Q9: 0 | R9: 0 | S9: 0
A10: H | B10: INGRESOS | C10: BF_1.1.1.3 | D10: Impuesto de Industria y Comercio | E10: =IFERROR(VLOOKUP(Entidad!$B$12&"-"&'Plan Financiero'!$C10,DAF_BalanceFinanciero!$A$2:$I$1076,COLUMN(DAF_BalanceFinanciero!H$1),FALSE),0) -> 0 | F10: =IFERROR(VLOOKUP(Entidad!$B$12&"-"&'Plan Financiero'!$C10,DAF_BalanceFinanciero!$A$2:$I$1076,COLUMN(DAF_BalanceFinanciero!I$1),FALSE),0) -> 0 | G10: 0 | H10: 0 | I10: 0 | J10: 0 | K10: 0 | L10: 0 | M10: 0 | N10: 0 | O10: 0 | P10: 0 | Q10: 0 | R10: 0 | S10: 0
A11: H | B11: INGRESOS | C11: BF_1.1.1.4 | D11: Registro y Anotación | E11: =IFERROR(VLOOKUP(Entidad!$B$12&"-"&'Plan Financiero'!$C11,DAF_BalanceFinanciero!$A$2:$I$1076,COLUMN(DAF_BalanceFinanciero!H$1),FALSE),0) -> 1594.100832 | F11: =IFERROR(VLOOKUP(Entidad!$B$12&"-"&'Plan Financiero'!$C11,DAF_BalanceFinanciero!$A$2:$I$1076,COLUMN(DAF_BalanceFinanciero!I$1),FALSE),0) -> 1471.680396 | G11: 1957.765995 | H11: 2108 | I11: 2067.400891 | J11: 2229 | K11: 2126 | L11: 2189.78 | M11: 2255.4734 | N11: 2323.137602 | O11: 2392.83173 | P11: 2464.616682 | Q11: 2538.555182 | R11: 2614.711838 | S11: 2693.153193
A12: H | B12: INGRESOS | C12: BF_1.1.1.5 | D12: Licores | E12: =IFERROR(VLOOKUP(Entidad!$B$12&"-"&'Plan Financiero'!$C12,DAF_BalanceFinanciero!$A$2:$I$1076,COLUMN(DAF_BalanceFinanciero!H$1),FALSE),0) -> 575.907911 | F12: =IFERROR(VLOOKUP(Entidad!$B$12&"-"&'Plan Financiero'!$C12,DAF_BalanceFinanciero!$A$2:$I$1076,COLUMN(DAF_BalanceFinanciero!I$1),FALSE),0) -> 657.541601 | G12: 1034.191744 | H12: =1293+836 -> 2129 | I12: 973.556469 | J12: =2002+883 -> 2885 | K12: 2487 | L12: 2561.61 | M12: 2638.4583 | N12: 2717.612049 | O12: 2799.14041 | P12: 2883.114623 | Q12: 2969.608061 | R12: 3058.696303 | S12: 3150.457192
A13: H | B13: INGRESOS | C13: BF_1.1.1.6 | D13: Cerveza | E13: =IFERROR(VLOOKUP(Entidad!$B$12&"-"&'Plan Financiero'!$C13,DAF_BalanceFinanciero!$A$2:$I$1076,COLUMN(DAF_BalanceFinanciero!H$1),FALSE),0) -> 17620.64559 | F13: =IFERROR(VLOOKUP(Entidad!$B$12&"-"&'Plan Financiero'!$C13,DAF_BalanceFinanciero!$A$2:$I$1076,COLUMN(DAF_BalanceFinanciero!I$1),FALSE),0) -> 16366.0071 | G13: 19753.93382 | H13: =19316 -> 19316 | I13: 20840.01692 | J13: 20417 | K13: 21030 | L13: 21660.9 | M13: 22310.727 | N13: 22980.04881 | O13: 23669.45027 | P13: 24379.53378 | Q13: 25110.9198 | R13: 25864.24739 | S13: 26640.17481
A14: H | B14: INGRESOS | C14: BF_1.1.1.7 | D14: Cigarrillos y Tabaco | E14: =IFERROR(VLOOKUP(Entidad!$B$12&"-"&'Plan Financiero'!$C14,DAF_BalanceFinanciero!$A$2:$I$1076,COLUMN(DAF_BalanceFinanciero!H$1),FALSE),0) -> 7508.84278 | F14: =IFERROR(VLOOKUP(Entidad!$B$12&"-"&'Plan Financiero'!$C14,DAF_BalanceFinanciero!$A$2:$I$1076,COLUMN(DAF_BalanceFinanciero!I$1),FALSE),0) -> 6837.689805 | G14: 7912.102748 | H14: 8718 | I14: 8355.180502 | J14: =7393+1822 -> 9215 | K14: 8752 | L14: 9014.56 | M14: 9284.9968 | N14: 9563.546704 | O14: 9850.453105 | P14: 10145.9667 | Q14: 10450.3457 | R14: 10763.85607 | S14: 11086.77175
A15: H | B15: INGRESOS | C15: BF_1.1.1.8 | D15: Sobretasa Consumo Gasolina Motor | E15: =IFERROR(VLOOKUP(Entidad!$B$12&"-"&'Plan Financiero'!$C15,DAF_BalanceFinanciero!$A$2:$I$1076,COLUMN(DAF_BalanceFinanciero!H$1),FALSE),0) -> 1929.609 | F15: =IFERROR(VLOOKUP(Entidad!$B$12&"-"&'Plan Financiero'!$C15,DAF_BalanceFinanciero!$A$2:$I$1076,COLUMN(DAF_BalanceFinanciero!I$1),FALSE),0) -> 2185.295 | G15: 3717.513 | H15: 5848 | I15: 3925.693728 | J15: 5388 | K15: 2705 | L15: 2786.15 | M15: 2869.7345 | N15: 2955.826535 | O15: 3044.501331 | P15: 3135.836371 | Q15: 3229.911462 | R15: 3326.808806 | S15: 3426.61307
A16: H | B16: INGRESOS | C16: BF_1.1.1.9 | D16: Estampillas | E16: =IFERROR(VLOOKUP(Entidad!$B$12&"-"&'Plan Financiero'!$C16,DAF_BalanceFinanciero!$A$2:$I$1076,COLUMN(DAF_BalanceFinanciero!H$1),FALSE),0) -> 10035.54842 | F16: =IFERROR(VLOOKUP(Entidad!$B$12&"-"&'Plan Financiero'!$C16,DAF_BalanceFinanciero!$A$2:$I$1076,COLUMN(DAF_BalanceFinanciero!I$1),FALSE),0) -> 12005.4014 | G16: 10291.83779 | H16: 13359 | I16: 10868.1807 | J16: 14120 | K16: 14544 | L16: 14980.32 | M16: 15429.7296 | N16: 15892.62149 | O16: 16369.40013 | P16: 16860.48214 | Q16: 17366.2966 | R16: 17887.2855 | S16: 18423.90406
A17: H | B17: INGRESOS | C17: BF_1.1.1.10 | D17: Impuesto de Transporte por Oleoductos y Gasoductos | E17: =IFERROR(VLOOKUP(Entidad!$B$12&"-"&'Plan Financiero'!$C17,DAF_BalanceFinanciero!$A$2:$I$1076,COLUMN(DAF_BalanceFinanciero!H$1),FALSE),0) -> 0 | F17: =IFERROR(VLOOKUP(Entidad!$B$12&"-"&'Plan Financiero'!$C17,DAF_BalanceFinanciero!$A$2:$I$1076,COLUMN(DAF_BalanceFinanciero!I$1),FALSE),0) -> 0 | G17: 0 | H17: 0 | I17: 0 | J17: 0 | K17: 0 | L17: 0 | M17: 0 | N17: 0 | O17: 0 | P17: 0 | Q17: 0 | R17: 0 | S17: 0
A18: H | B18: INGRESOS | C18: BF_1.1.1.11 | D18: Impuesto Único a Favor de San Andrés | E18: =IFERROR(VLOOKUP(Entidad!$B$12&"-"&'Plan Financiero'!$C18,DAF_BalanceFinanciero!$A$2:$I$1076,COLUMN(DAF_BalanceFinanciero!H$1),FALSE),0) -> 0 | F18: =IFERROR(VLOOKUP(Entidad!$B$12&"-"&'Plan Financiero'!$C18,DAF_BalanceFinanciero!$A$2:$I$1076,COLUMN(DAF_BalanceFinanciero!I$1),FALSE),0) -> 0 | G18: 0 | H18: 0 | I18: 0 | J18: 0 | K18: 0 | L18: 0 | M18: 0 | N18: 0 | O18: 0 | P18: 0 | Q18: 0 | R18: 0 | S18: 0
A19: H | B19: INGRESOS | C19: BF_1.1.1.12 | D19: Otros Ingresos Tributarios | E19: =IFERROR(VLOOKUP(Entidad!$B$12&"-"&'Plan Financiero'!$C19,DAF_BalanceFinanciero!$A$2:$I$1076,COLUMN(DAF_BalanceFinanciero!H$1),FALSE),0) -> 2959.970794 | F19: =IFERROR(VLOOKUP(Entidad!$B$12&"-"&'Plan Financiero'!$C19,DAF_BalanceFinanciero!$A$2:$I$1076,COLUMN(DAF_BalanceFinanciero!I$1),FALSE),0) -> 2357.838487 | G19: 1642.432928 | H19: =231+152 -> 383 | I19: 2211.387773 | J19: =160+244+4 -> 408 | K19: =5270+161 -> 5431 | L19: 5593.93 | M19: 5761.7479 | N19: 5934.600337 | O19: 6112.638347 | P19: 6296.017498 | Q19: 6484.898022 | R19: 6679.444963 | S19: 6879.828312
A20: P | B20: NA | C20: BF_1.1.2 | D20: NO TRIBUTARIOS | E20: =SUM(E21:E22) -> 11262.43638 | F20: 12072.20386 | G20: =SUM(G21:G22) -> 18974.49741 | H20: =SUM(H21:H22) -> 20795 | I20: 14091.21296 | J20: 20087 | K20: 19919 | L20: 20516.57 | M20: 21132.0671 | N20: 21766.02911 | O20: 22419.00999 | P20: 23091.58029 | Q20: =SUM(Q21:Q22) -> 23784.32769 | R20: =SUM(R21:R22) -> 24497.85753
A21: H | B21: INGRESOS | C21: BF_1.1.2.1 | D21: Ingresos de la Propiedad: Tasas, Derechos, Multas y Sanciones | E21: =IFERROR(VLOOKUP(Entidad!$B$12&"-"&'Plan Financiero'!$C21,DAF_BalanceFinanciero!$A$2:$I$1076,COLUMN(DAF_BalanceFinanciero!H$1),FALSE),0) -> 10413.00253 | F21: =IFERROR(VLOOKUP(Entidad!$B$12&"-"&'Plan Financiero'!$C21,DAF_BalanceFinanciero!$A$2:$I$1076,COLUMN(DAF_BalanceFinanciero!I$1),FALSE),0) -> 11355.99237 | G21: =2361.08590199+15957.89306633 -> 18318.97897 | H21: =1792+942+810+15820 -> 19364 | I21: 13155.27888 | J21: =1894+758+1054+14868 -> 18574 | K21: =791+845+2020+14851 -> 18507 | L21: =(K21*3%)+K21 -> 19062.21 | M21: 19634.0763 | N21: 20223.09859 | O21: 20829.79155 | P21: 21454.68529 | Q21: 22098.32585 | R21: 22761.27563 | S21: 23444.1139
A22: H | B22: INGRESOS | C22: BF_1.1.2.2 | D22: Otros No Tributarios | E22: =IFERROR(VLOOKUP(Entidad!$B$12&"-"&'Plan Financiero'!$C22,DAF_BalanceFinanciero!$A$2:$I$1076,COLUMN(DAF_BalanceFinanciero!H$1),FALSE),0) -> 849.433853 | F22: =IFERROR(VLOOKUP(Entidad!$B$12&"-"&'Plan Financiero'!$C22,DAF_BalanceFinanciero!$A$2:$I$1076,COLUMN(DAF_BalanceFinanciero!I$1),FALSE),0) -> 716.211498 | G22: 655.518441 | H22: =1431 -> 1431 | I22: 935.934079 | J22: =1513 -> 1513 | K22: =1412 -> 1412 | L22: 1454.36 | M22: 1497.9908 | N22: 1542.930524 | O22: 1589.21844 | P22: 1636.894993 | Q22: 1686.001843 | R22: 1736.581898 | S22: 1788.679355
A23: P | B23: NA | C23: BF_1.1.3 | D23: TRANSFERENCIAS | E23: =E24+E32 -> 323171.1371 | F23: 368632.8922 | G23: =G24+G32 -> 381430.9037 | H23: 374935 | I23: 369066.9639 | J23: 452590 | K23: 548047 | L23: 564488.41 | M23: 581423.0623 | N23: 598865.7542 | O23: 616831.7268 | P23: 635336.6786 | Q23: =Q24+Q32 -> 654396.779 | R23: =R24+R32 -> 674028.6823
A24: P | B24: NA | C24: BF_1.1.3.1 | D24: Transferencias Para Funcionamiento | E24: =E25+E28+E31 -> 19561.63596 | F24: 29924.55077 | G24: =G25+G28+G31 -> 25985.06208 | H24: 22225 | I24: 22886.45912 | J24: 34435 | K24: 41483 | L24: 42727.49 | M24: 44009.3147 | N24: 45329.59414 | O24: 46689.48197 | P24: 48090.16642 | Q24: =Q25+Q28+Q31 -> 49532.87142 | R24: =R25+R28+R31 -> 51018.85756
A25: P | B25: NA | C25: BF_1.1.3.1.1 | D25: Del Nivel Nacional | E25: =SUM(E26:E27) -> 19010.14106 | F25: 29477.09776 | G25: =SUM(G26:G27) -> 20967.7251 | H25: 21996 | I25: 22210.713 | J25: 34019 | K25: 41123 | L25: 42356.69 | M25: 43627.3907 | N25: 44936.21242 | O25: 46284.29879 | P25: 47672.82776 | Q25: =SUM(Q26:Q27) -> 49103.01259 | R25: =SUM(R26:R27) -> 50576.10297
A26: H | B26: INGRESOS | C26: BF_1.1.3.1.1.1 | D26: Sistema General de Participaciones - Propósito General - Libre dest. - categorías 4, 5 y 6 | E26: =IFERROR(VLOOKUP(Entidad!$B$12&"-"&'Plan Financiero'!$C26,DAF_BalanceFinanciero!$A$2:$I$1076,COLUMN(DAF_BalanceFinanciero!H$1),FALSE),0) -> 0 | F26: =IFERROR(VLOOKUP(Entidad!$B$12&"-"&'Plan Financiero'!$C26,DAF_BalanceFinanciero!$A$2:$I$1076,COLUMN(DAF_BalanceFinanciero!I$1),FALSE),0) -> 0 | G26: 0 | H26: 0 | I26: 0 | J26: 0 | K26: =(J26*5.7%)+J26 -> 0 | L26: =(K26*3%)+K26 -> 0 | M26: 0 | N26: 0 | O26: 0 | P26: 0 | Q26: 0 | R26: 0 | S26: 0
A27: H | B27: INGRESOS | C27: BF_1.1.3.1.1.2 | D27: Otras Transferencias de la Nación | E27: =IFERROR(VLOOKUP(Entidad!$B$12&"-"&'Plan Financiero'!$C27,DAF_BalanceFinanciero!$A$2:$I$1076,COLUMN(DAF_BalanceFinanciero!H$1),FALSE),0) -> 19010.14106 | F27: =IFERROR(VLOOKUP(Entidad!$B$12&"-"&'Plan Financiero'!$C27,DAF_BalanceFinanciero!$A$2:$I$1076,COLUMN(DAF_BalanceFinanciero!I$1),FALSE),0) -> 29477.09776 | G27: 20967.7251 | H27: =21414+582 -> 21996 | I27: 22210.713 | J27: =350+33669 -> 34019 | K27: 41123 | L27: 42356.69 | M27: 43627.3907 | N27: 44936.21242 | O27: 46284.29879 | P27: 47672.82776 | Q27: 49103.01259 | R27: 50576.10297 | S27: 52093.38606
A28: P | B28: NA | C28: BF_1.1.3.1.2 | D28: Del Nivel Departamental | E28: =+E29+E30 -> 0 | F28: =+F29+F30 -> 0 | G28: =SUM(G29:G30) -> 4584.35611 | H28: =SUM(H29:H30) -> 0 | I28: =SUM(I29:I30) -> 0 | J28: 0 | K28: 0 | L28: 0 | M28: 0 | N28: 0 | O28: 0 | P28: 0 | Q28: =SUM(Q29:Q30) -> 0 | R28: 0
A29: H | B29: INGRESOS | C29: BF_1.1.3.1.2.1 | D29: De Vehículos Automotores | E29: =IFERROR(VLOOKUP(Entidad!$B$12&"-"&'Plan Financiero'!$C29,DAF_BalanceFinanciero!$A$2:$I$1076,COLUMN(DAF_BalanceFinanciero!H$1),FALSE),0) -> 0 | F29: =IFERROR(VLOOKUP(Entidad!$B$12&"-"&'Plan Financiero'!$C29,DAF_BalanceFinanciero!$A$2:$I$1076,COLUMN(DAF_BalanceFinanciero!I$1),FALSE),0) -> 0 | G29: 0 | H29: 0 | I29: 0 | J29: 0 | K29: =(J29*5.7%)+J29 -> 0 | L29: =(K29*3%)+K29 -> 0 | M29: 0 | N29: 0 | O29: 0 | P29: 0 | Q29: 0 | R29: 0 | S29: 0
A30: H | B30: INGRESOS | C30: BF_1.1.3.1.2.2 | D30: Otras Transferencias del Departamento | E30: =IFERROR(VLOOKUP(Entidad!$B$12&"-"&'Plan Financiero'!$C30,DAF_BalanceFinanciero!$A$2:$I$1076,COLUMN(DAF_BalanceFinanciero!H$1),FALSE),0) -> 0 | F30: =IFERROR(VLOOKUP(Entidad!$B$12&"-"&'Plan Financiero'!$C30,DAF_BalanceFinanciero!$A$2:$I$1076,COLUMN(DAF_BalanceFinanciero!I$1),FALSE),0) -> 0 | G30: 4584.35611 | H30: 0 | I30: 0 | J30: 0 | K30: 0 | L30: 0 | M30: 0 | N30: 0 | O30: 0 | P30: 0 | Q30: 0 | R30: 0 | S30: 0
A31: H | B31: INGRESOS | C31: BF_1.1.3.1.3 | D31: Otras Transferencias Para Funcionamiento | E31: =IFERROR(VLOOKUP(Entidad!$B$12&"-"&'Plan Financiero'!$C31,DAF_BalanceFinanciero!$A$2:$I$1076,COLUMN(DAF_BalanceFinanciero!H$1),FALSE),0) -> 551.494909 | F31: =IFERROR(VLOOKUP(Entidad!$B$12&"-"&'Plan Financiero'!$C31,DAF_BalanceFinanciero!$A$2:$I$1076,COLUMN(DAF_BalanceFinanciero!I$1),FALSE),0) -> 447.453016 | G31: =212.7008777+220.28 -> 432.9808777 | H31: 229 | I31: 675.7461151 | J31: 416 | K31: 360 | L31: 370.8 | M31: 381.924 | N31: 393.38172 | O31: 405.1831716 | P31: 417.3386667 | Q31: 429.8588268 | R31: 442.7545916 | S31: 456.0372293
... 37 more rows

Sheet Superávit Primario
A1: =Entidad!B10 -> DEPARTAMENTO DEL PUTUMAYO
A2: METAS DEL SUPERAVIT PRIMARIO
A3: LEY 819 DE 2003 (millones de pesos)
A4: CONCEPTOS | B4: =+'Plan Financiero'!E4 -> 2019 | C4: =+'Plan Financiero'!F4 -> 2020 | D4: =+'Plan Financiero'!G4 -> 2021 | E4: =+'Plan Financiero'!H4 -> 2022 | F4: =+'Plan Financiero'!I4 -> 2023 | G4: =+'Plan Financiero'!J4 -> 2024 | H4: =+'Plan Financiero'!K4 -> 2025 | I4: =+'Plan Financiero'!L4 -> 2026 | J4: =+'Plan Financiero'!M4 -> 2027 | K4: =+'Plan Financiero'!N4 -> 2028 | L4: =+'Plan Financiero'!O4 -> 2029 | M4: =+'Plan Financiero'!P4 -> 2030 | N4: =+'Plan Financiero'!Q4 -> 2031 | O4: =+'Plan Financiero'!R4 -> 2032
A5: INGRESOS CORRIENTES | B5: =+'Plan Financiero'!E6 -> 377573.1426 | C5: =+'Plan Financiero'!F6 -> 423750.615 | D5: =+'Plan Financiero'!G6 -> 447982.7106 | E5: =+'Plan Financiero'!H6 -> 449211 | F5: =+'Plan Financiero'!I6 -> 434010.7228 | G5: =+'Plan Financiero'!J6 -> 529045 | H5: =+'Plan Financiero'!K6 -> 626949 | I5: =+'Plan Financiero'!L6 -> 645757.47 | J5: =+'Plan Financiero'!M6 -> 665130.1941 | K5: =+'Plan Financiero'!N6 -> 685084.0999 | L5: =+'Plan Financiero'!O6 -> 705636.6229 | M5: =+'Plan Financiero'!P6 -> 726805.7216 | N5: =+'Plan Financiero'!Q6 -> 748609.8933 | O5: =+'Plan Financiero'!R6 -> 771068.1901
A6: RECURSOS DE CAPITAL | B6: =+'Plan Financiero'!E75+'Plan Financiero'!E106 -> 108166.3709 | C6: =+'Plan Financiero'!F75+'Plan Financiero'!F106 -> 88819.28483 | D6: =+'Plan Financiero'!G75+'Plan Financiero'!G106 -> 85969.01854 | E6: =+'Plan Financiero'!H75+'Plan Financiero'!H106 -> 104555 | F6: =+'Plan Financiero'!I75+'Plan Financiero'!I106 -> 65607.9365 | G6: =+'Plan Financiero'!J75+'Plan Financiero'!J106 -> 41755 | H6: =+'Plan Financiero'!K75+'Plan Financiero'!K106 -> 20881 | I6: =+'Plan Financiero'!L75+'Plan Financiero'!L106 -> 21507.43 | J6: =+'Plan Financiero'!M75+'Plan Financiero'!M106 -> 22152.6529 | K6: =+'Plan Financiero'!N75+'Plan Financiero'!N106 -> 22817.23249 | L6: =+'Plan Financiero'!O75+'Plan Financiero'!O106 -> 23501.74946 | M6: =+'Plan Financiero'!P75+'Plan Financiero'!P106 -> 24206.80195 | N6: =+'Plan Financiero'!Q75+'Plan Financiero'!Q106 -> 24933.006 | O6: =+'Plan Financiero'!R75+'Plan Financiero'!R106 -> 25680.99618
A7: GASTOS DE FUNCIONAMIENTO | B7: =+'Plan Financiero'!E49 -> 52389.62586 | C7: =+'Plan Financiero'!F49 -> 50618.85601 | D7: =+'Plan Financiero'!G49 -> 49259.64961 | E7: =+'Plan Financiero'!H49 -> 53057 | F7: =+'Plan Financiero'!I49 -> 59337.76077 | G7: =+'Plan Financiero'!J49 -> 65188 | H7: =+'Plan Financiero'!K49 -> 74874 | I7: =+'Plan Financiero'!L49 -> 77120.22 | J7: =+'Plan Financiero'!M49 -> 79433.8266 | K7: =+'Plan Financiero'!N49 -> 81816.8414 | L7: =+'Plan Financiero'!O49 -> 84271.34664 | M7: =+'Plan Financiero'!P49 -> 86799.48704 | N7: =+'Plan Financiero'!Q49 -> 89403.47165 | O7: =+'Plan Financiero'!R49 -> 92085.5758
A8: GASTOS DE INVERSION | B8: =+'Plan Financiero'!E65+'Plan Financiero'!E87+SUM('Plan Financiero'!E63:E64) -> 386365.1992 | C8: =+'Plan Financiero'!F65+'Plan Financiero'!F87+SUM('Plan Financiero'!F63:F64) -> 402541.8848 | D8: =+'Plan Financiero'!G65+'Plan Financiero'!G87+SUM('Plan Financiero'!G63:G64) -> 416679.0004 | E8: =+'Plan Financiero'!H65+'Plan Financiero'!H87+SUM('Plan Financiero'!H63:H64) -> 446451 | F8: =+'Plan Financiero'!I65+'Plan Financiero'!I87+SUM('Plan Financiero'!I63:I64) -> 389831.678 | G8: =+'Plan Financiero'!J65+'Plan Financiero'!J87+SUM('Plan Financiero'!J63:J64) -> 477396 | H8: =+'Plan Financiero'!K65+'Plan Financiero'!K87+SUM('Plan Financiero'!K63:K64) -> 571523 | I8: =+'Plan Financiero'!L65+'Plan Financiero'!L87+SUM('Plan Financiero'!L63:L64) -> 588668.69 | J8: =+'Plan Financiero'!M65+'Plan Financiero'!M87+SUM('Plan Financiero'!M63:M64) -> 606328.7507 | K8: =+'Plan Financiero'!N65+'Plan Financiero'!N87+SUM('Plan Financiero'!N63:N64) -> 624518.6132 | L8: =+'Plan Financiero'!O65+'Plan Financiero'!O87+SUM('Plan Financiero'!O63:O64) -> 643254.1716 | M8: =+'Plan Financiero'!P65+'Plan Financiero'!P87+SUM('Plan Financiero'!P63:P64) -> 662551.7968 | N8: =+'Plan Financiero'!Q65+'Plan Financiero'!Q87+SUM('Plan Financiero'!Q63:Q64) -> 682428.3507 | O8: =+'Plan Financiero'!R65+'Plan Financiero'!R87+SUM('Plan Financiero'!R63:R64) -> 702901.2012
A9: SUPERAVIT O DEFICIT PRIMARIO | B9: =+B5+B6-B7-B8 -> 46984.68849 | C9: 59409.15898 | D9: =+D5+D6-D7-D8 -> 68013.07912 | E9: 54258 | F9: 50449.22047 | G9: 28216 | H9: 1433 | I9: 1475.99 | J9: 1520.2697 | K9: 1565.877791 | L9: 1612.854125 | M9: 1661.239748 | N9: =+N5+N6-N7-N8 -> 1711.076941 | O9: 1762.409249
A10: INDICADOR (superávit primario / Intereses) > = 100% | B10: =IF(B14<>0,B9/(B14),IF(AND(B14=0,B9<0),0,0)) -> 0 | C10: =IF(C14<>0,C9/(C14),IF(AND(C14=0,C9<0),0,0)) -> 0 | D10: 0 | E10: 0 | F10: 30.40941559 | G10: 17.72361809 | H10: 1 | I10: 1.094948071 | J10: 1.240024225 | K10: 1.418367564 | L10: 1.642417642 | M10: 1.931674126 | N10: =IF(N14<>0,N9/(N14),IF(AND(N14=0,N9<0),0,0)) -> 2.31853244 | O10: 3.263720832
B11: =IF(B14=0,"",IF(B10<100%,"INSOSTENIBLE","SOSTENIBLE")) ->  | C11: =IF(C14=0,"",IF(C10<100%,"INSOSTENIBLE","SOSTENIBLE")) ->  | F11: SOSTENIBLE | G11: SOSTENIBLE | H11: SOSTENIBLE | I11: SOSTENIBLE | J11: SOSTENIBLE | K11: SOSTENIBLE | L11: SOSTENIBLE | M11: SOSTENIBLE | N11: SOSTENIBLE | O11: =IF(O14=0,"",IF(O10<100%,"INSOSTENIBLE","SOSTENIBLE")) -> SOSTENIBLE
A12: Millones de pesos
A13: Servicio de la Deuda por: | B13: =+B4 -> 2019 | C13: =+C4 -> 2020 | D13: =+D4 -> 2021 | E13: 2022 | F13: 2023 | G13: 2024 | H13: 2025 | I13: 2026 | J13: 2027 | K13: 2028 | L13: 2029 | M13: 2030 | N13: =+N4 -> 2031 | O13: 2032
A14: Intereses | B14: =+'Plan Financiero'!E71 -> 0 | C14: =+'Plan Financiero'!F71 -> 0 | D14: =+'Plan Financiero'!G71 -> 0 | E14: =+'Plan Financiero'!H71 -> 0 | F14: =+'Plan Financiero'!I71 -> 1659 | G14: =+'Plan Financiero'!J71 -> 1592 | H14: =+'Plan Financiero'!K71 -> 1433 | I14: =+'Plan Financiero'!L71 -> 1348 | J14: =+'Plan Financiero'!M71 -> 1226 | K14: =+'Plan Financiero'!N71 -> 1104 | L14: =+'Plan Financiero'!O71 -> 982 | M14: =+'Plan Financiero'!P71 -> 860 | N14: =+'Plan Financiero'!Q71 -> 738 | O14: =+'Plan Financiero'!R71 -> 540

Sheet Capacidad de Endeudamiento
B1: REFERENTE DE LA CAPACIDAD DE ENDEUDAMIENTO | D1: IPC PROYECTADO
B2: =Entidad!B10 -> DEPARTAMENTO DEL PUTUMAYO | D2: 0.03 | E2: =D2 -> 0.03 | F2: =E2 -> 0.03 | G2: 0.03 | H2: 0.03 | I2: 0.03 | J2: 0.03 | K2: 0.03 | L2: 0.03 | M2: 0.03 | N2: 0.03
B3: Valores en millones de pesos | D3: PROYECCION CAPACIDAD LEGAL DE ENDEUDAMIENTO - LEY 358 DE 1997
B4: Concepto | C4: ="Capacidad de endeudamiento (Ley 358/97) "&Entidad!B14 -> Capacidad de endeudamiento (Ley 358/97) 2021 | D4: =+Entidad!B14+1 -> 2022 | E4: =+D4+1 -> 2023 | F4: =+E4+1 -> 2024 | G4: 2025 | H4: 2026 | I4: 2027 | J4: 2028 | K4: 2029 | L4: 2030 | M4: 2031 | N4: 2032
B5: 1. Ingresos corrientes Ley 358 de 1997 (1.1-1.2) | C5: =C6-C7 -> 127311.4816 | D5: =D6-D7 -> 131130.826 | E5: 135064.7508 | F5: 139116.6933 | G5: 143290.1941 | H5: 147588.8999 | I5: 152016.5669 | J5: 156577.0639 | K5: 161274.3759 | L5: 166112.6071 | M5: 171095.9853 | N5: =N6-N7 -> 176228.8649
A6: CAPEN.1.1 | B6: 1.1 Ingresos corrientes (sin descontar vigencias futuras) | C6: =IFERROR(VLOOKUP(Entidad!$B$12&"-"&'Capacidad de Endeudamiento'!$A6,DAF_Ley358!$A$2:$G$56,7,FALSE),0) -> 127311.4816 | D6: =+C6*(1+D2) -> 131130.826 | E6: =+D6*(1+E2) -> 135064.7508 | F6: 139116.6933 | G6: 143290.1941 | H6: 147588.8999 | I6: 152016.5669 | J6: 156577.0639 | K6: 161274.3759 | L6: 166112.6071 | M6: 171095.9853 | N6: 176228.8649
A7: CAPEN.1.2 | B7: 1.2 Vigencias futuras | C7: =IFERROR(VLOOKUP(Entidad!$B$12&"-"&'Capacidad de Endeudamiento'!$A7,DAF_Ley358!$A$2:$G$56,7,FALSE),0) -> 0
A8: CAPEN.2 | B8: 2. Gastos de funcionamiento | C8: =IFERROR(VLOOKUP(Entidad!$B$12&"-"&'Capacidad de Endeudamiento'!$A8,DAF_Ley358!$A$2:$G$56,7,FALSE),0) -> 34612.78745 | D8: =+C8*(1+D2) -> 35651.17108 | E8: =+D8*(1+E2) -> 36720.70621 | F8: 37822.32739 | G8: 38956.99722 | H8: 40125.70713 | I8: 41329.47835 | J8: 42569.3627 | K8: 43846.44358 | L8: 45161.83688 | M8: 46516.69199 | N8: 47912.19275
B9: 3. Ahorro operacional (1-2) | C9: =C5-C8 -> 92698.69411 | D9: =D5-D8 -> 95479.65493 | E9: 98344.04458 | F9: 101294.3659 | G9: 104333.1969 | H9: 107463.1928 | I9: 110687.0886 | J9: 114007.7012 | K9: 117427.9323 | L9: 120950.7703 | M9: 124579.2934 | N9: =N5-N8 -> 128316.6722
B10: 4. Saldo neto de la deuda con nuevo crédito (4.1-4.2-4.3+4.4) | C10: =C11-C16-C20+C21 -> 0 | D10: 0 | E10: 0 | F10: 0 | G10: 0 | H10: 0 | I10: 0 | J10: 0 | K10: 0 | L10: 0 | M10: 0 | N10: =N11-N16-N20+N21 -> 0
B11: 4.1 Saldo de la deuda antes de amortizaciones (4.1.1-4.1.2+4.1.3+4.1.4) | C11: =C12-C13+C14+C15 -> 0 | D11: =D12-D13+D14+D15 -> 0 | E11: 0 | F11: 0 | G11: 0 | H11: 0 | I11: 0 | J11: 0 | K11: 0 | L11: 0 | M11: 0 | N11: =N12-N13+N14+N15 -> 0
A12: CAPEN.4.1.1 | B12: 4.1.1 Saldo de la deuda a 31 de diciembre de la vigencia anterior | C12: =IFERROR(VLOOKUP(Entidad!$B$12&"-"&'Capacidad de Endeudamiento'!$A12,DAF_Ley358!$A$2:$G$56,7,FALSE),0) -> 0 | D12: =+C10 -> 0 | E12: =+D10 -> 0 | F12: 0 | G12: 0 | H12: 0 | I12: 0 | J12: 0 | K12: 0 | L12: 0 | M12: 0 | N12: 0
A13: CAPEN.4.1.2 | B13: 4.1.2 Saldo de la deuda a 31 de diciembre de la vigencia anterior - financiada con regalías | C13: =IFERROR(VLOOKUP(Entidad!$B$12&"-"&'Capacidad de Endeudamiento'!$A13,DAF_Ley358!$A$2:$G$56,7,FALSE),0) -> 0
B14: 4.1.3 Valor de los créditos contratados en la vigencia y no desembolsados
B15: 4.1.4 Valor del nuevo crédito a contratar - proyección de desembolsos
B16: 4.2 Amortizaciones de la vigencia (4.2.1-4.2.2+4.2.3) | C16: =C17-C18+C19 -> 0 | D16: =D17-D18+D19 -> 0 | E16: 0 | F16: 0 | G16: 0 | H16: 0 | I16: 0 | J16: 0 | K16: 0 | L16: 0 | M16: 0 | N16: 0
A17: CAPEN.4.2.1 | B17: 4.2.1 Amortizaciones de deuda para la vigencia | C17: =IFERROR(VLOOKUP(Entidad!$B$12&"-"&'Capacidad de Endeudamiento'!$A17,DAF_Ley358!$A$2:$G$56,7,FALSE),0) -> 0
A18: CAPEN.4.2.2 | B18: 4.2.2 Amortizaciones de deuda financiada con regalías | C18: =IFERROR(VLOOKUP(Entidad!$B$12&"-"&'Capacidad de Endeudamiento'!$A18,DAF_Ley358!$A$2:$G$56,7,FALSE),0) -> 0
B19: 4.2.3 Amortizaciones del Nuevo Crédito
A20: CAPEN.4.3 | B20: 4.3 Créditos condonables | C20: =IFERROR(VLOOKUP(Entidad!$B$12&"-"&'Capacidad de Endeudamiento'!$A20,DAF_Ley358!$A$2:$G$56,7,FALSE),0) -> 0
A21: CAPEN.4.4 | B21: 4.4 Amortizaciones de créditos condonables | C21: =IFERROR(VLOOKUP(Entidad!$B$12&"-"&'Capacidad de Endeudamiento'!$A21,DAF_Ley358!$A$2:$G$56,7,FALSE),0) -> 0
B22: 5. Intereses de la vigencia (5.1-5.2+5.3) | C22: =C23-C24+C25 -> 0 | D22: =D23-D24+D25 -> 0 | E22: 0 | F22: 0 | G22: 0 | H22: 0 | I22: 0 | J22: 0 | K22: 0 | L22: 0 | M22: 0 | N22: 0
A23: CAPEN.5.1 | B23: 5.1 Intereses de la deuda vigente | C23: =IFERROR(VLOOKUP(Entidad!$B$12&"-"&'Capacidad de Endeudamiento'!$A23,DAF_Ley358!$A$2:$G$56,7,FALSE),0) -> 0
A24: CAPEN.5.2 | B24: 5.2 Intereses de la deuda financiada con regalías | C24: =IFERROR(VLOOKUP(Entidad!$B$12&"-"&'Capacidad de Endeudamiento'!$A24,DAF_Ley358!$A$2:$G$56,7,FALSE),0) -> 0
B25: 5.3 Intereses del Nuevo Crédito
B26: SOLVENCIA = Intereses / Ahorro operacional = (5/3) - Sin cobertura de riesgo | C26: =(C22/C9) -> 0 | D26: =D22/D9 -> 0 | E26: 0 | F26: 0 | G26: 0 | H26: 0 | I26: 0 | J26: 0 | K26: 0 | L26: 0 | M26: 0 | N26: =N22/N9 -> 0
B27: SOSTENIBILIDAD = Saldo deuda / Ingresos corrientes = (4/1) - Sin Cobertura de riesgo | C27: =C10/C5 -> 0 | D27: =D10/D5 -> 0 | E27: 0 | F27: 0 | G27: 0 | H27: 0 | I27: 0 | J27: 0 | K27: 0 | L27: 0 | M27: 0 | N27: =N10/N5 -> 0
B28: SEMÁFORO: Estado actual de la entidad | C28: =IF(C9<0,"AHORRO NEGATIVO",IF(C27>0.8,"ROJO",IF(C26>0.4,"ROJO","VERDE"))) -> VERDE | D28: =IF(D9<0,"AHORRO NEGATIVO",IF(D27>0.8,"ROJO",IF(D26>0.4,"ROJO","VERDE"))) -> VERDE | E28: VERDE | F28: VERDE | G28: VERDE | H28: VERDE | I28: VERDE | J28: VERDE | K28: VERDE | L28: VERDE | M28: VERDE | N28: =IF(N9<0,"AHORRO NEGATIVO",IF(N27>0.8,"ROJO",IF(N26>0.4,"ROJO","VERDE"))) -> VERDE
B29: SEMÁFORO: Estado actual de la entidad | C29: =IF(C28="VERDE",1,0) -> 1 | D29: =IF(D28="VERDE",1,0) -> 1 | E29: 1 | F29: 1 | G29: 1 | H29: 1 | I29: 1 | J29: 1 | K29: 1 | L29: 1 | M29: 1 | N29: =IF(N28="VERDE",1,0) -> 1
B31: SOLVENCIA = Intereses / Ahorro operacional = (9/3) - Con cobertura de riesgo | C31: =+IFERROR(C38/C9,0) -> 0 | D31: =+IFERROR(D38/D9,0) -> 0 | E31: 0 | F31: 0 | G31: 0 | H31: 0 | I31: 0 | J31: 0 | K31: 0 | L31: 0 | M31: 0 | N31: 0
B32: SOSTENIBILIDAD = Saldo deuda / Ingresos corrientes = (18/1) Con cobertura de riesgo | C32: =+C51/C5 -> 0 | D32: 0 | E32: 0 | F32: 0 | G32: 0 | H32: 0 | I32: 0 | J32: 0 | K32: 0 | L32: 0 | M32: 0 | N32: =+N51/N5 -> 0
B34: DATOS PARA ESTABLECER CUBERTURAS DE RIESGO LEY 819 DE 2003 | C34: =+Entidad!B14 -> 2021 | D34: =+Entidad!B14+1 -> 2022 | E34: =+D34+1 -> 2023 | F34: =+E34+1 -> 2024 | G34: 2025 | H34: 2026 | I34: 2027 | J34: 2028 | K34: 2029 | L34: 2030 | M34: 2031 | N34: 2032
B35: 6. TASA DE INTERES IMPLICITA DE LOS CREDITOS | C35: =+IFERROR(C22/IFERROR(VLOOKUP(Entidad!$B$12,DAF_SaldoDeuda!$B$2:$D$11,3,FALSE),0),0) -> 0 | D35: =+IFERROR(D22/IFERROR(VLOOKUP(Entidad!$B$12,DAF_SaldoDeuda!$B$2:$D$11,3,FALSE),0),0) -> 0 | E35: =+IFERROR(E22/IFERROR(VLOOKUP(Entidad!$B$12,DAF_SaldoDeuda!$B$2:$D$11,3,FALSE),0),0) -> 0 | F35: =+IFERROR(F22/IFERROR(VLOOKUP(Entidad!$B$12,DAF_SaldoDeuda!$B$2:$D$11,3,FALSE),0),0) -> 0 | G35: =+IFERROR(G22/IFERROR(VLOOKUP(Entidad!$B$12,DAF_SaldoDeuda!$B$2:$D$11,3,FALSE),0),0) -> 0 | H35: =+IFERROR(H22/IFERROR(VLOOKUP(Entidad!$B$12,DAF_SaldoDeuda!$B$2:$D$11,3,FALSE),0),0) -> 0 | I35: =+IFERROR(I22/IFERROR(VLOOKUP(Entidad!$B$12,DAF_SaldoDeuda!$B$2:$D$11,3,FALSE),0),0) -> 0 | J35: =+IFERROR(J22/IFERROR(VLOOKUP(Entidad!$B$12,DAF_SaldoDeuda!$B$2:$D$11,3,FALSE),0),0) -> 0 | K35: =+IFERROR(K22/IFERROR(VLOOKUP(Entidad!$B$12,DAF_SaldoDeuda!$B$2:$D$11,3,FALSE),0),0) -> 0 | L35: =+IFERROR(L22/IFERROR(VLOOKUP(Entidad!$B$12,DAF_SaldoDeuda!$B$2:$D$11,3,FALSE),0),0) -> 0 | M35: =+IFERROR(M22/IFERROR(VLOOKUP(Entidad!$B$12,DAF_SaldoDeuda!$B$2:$D$11,3,FALSE),0),0) -> 0 | N35: =+IFERROR(N22/IFERROR(VLOOKUP(Entidad!$B$12,DAF_SaldoDeuda!$B$2:$D$11,3,FALSE),0),0) -> 0
B36: 7. PORCENTAJE DE COBERTURA EN TASA DE INTERES | C36: 0.741 | D36: 0.741 | E36: 0.741 | F36: 0.741 | G36: 0.741 | H36: 0.741 | I36: 0.741 | J36: 0.741 | K36: 0.741 | L36: 0.741 | M36: 0.741 | N36: 0.741
B37: 8. TASA DE INTERES CON COBERTURA DE RIESGO | C37: =C35*(1+C36) -> 0 | D37: =D35*(1+D36) -> 0 | E37: 0 | F37: 0 | G37: 0 | H37: 0 | I37: 0 | J37: 0 | K37: 0 | L37: 0 | M37: 0 | N37: =N35*(1+N36) -> 0
B38: 9. INTERESES PROYECTADOS CON COBERTURA DE RIESGO | C38: =IFERROR(VLOOKUP(Entidad!$B$12,DAF_SaldoDeuda!$B$2:$D$11,3,FALSE),0)*'Capacidad de Endeudamiento'!C37 -> 0 | D38: =+C10*D37 -> 0 | E38: =+D10*E37 -> 0 | F38: 0 | G38: 0 | H38: 0 | I38: 0 | J38: 0 | K38: 0 | L38: 0 | M38: 0 | N38: 0
B41: 10. TASA REPRESENTATIVA DEL MERCADO (SUPUESTOS MACROECONOMICOS) | C41: ='Supuestos Macro Nación'!G14 -> 3738.216574 | D41: ='Supuestos Macro Nación'!H14 -> 3743.858853 | E41: ='Supuestos Macro Nación'!I14 -> 3822.479889 | F41: ='Supuestos Macro Nación'!J14 -> 3902.751967 | G41: ='Supuestos Macro Nación'!K14 -> 3984.709758 | H41: ='Supuestos Macro Nación'!L14 -> 4068.388663 | I41: ='Supuestos Macro Nación'!M14 -> 4153.824825 | J41: ='Supuestos Macro Nación'!N14 -> 4241.055146 | K41: ='Supuestos Macro Nación'!O14 -> 4330.117304 | L41: ='Supuestos Macro Nación'!P14 -> 4421.049768 | M41: ='Supuestos Macro Nación'!Q14 -> 4513.891813 | N41: ='Supuestos Macro Nación'!R14 -> 4608.683541
B43: 11. SALDO DEUDA EXTERNA EN PESOS=VALOR EN DOLARES POR LA TASA DE CAMBIO DE LA FILA 41
B44: 12. SALDO DE LA DEUDA INTERNA EN PESOS
B45: 13. TOTAL SALDO DE LA DEUDA EN PESOS | C45: =+C43+C44 -> 0 | D45: =+D43+D44 -> 0 | E45: 0 | F45: 0 | G45: 0 | H45: 0 | I45: 0 | J45: 0 | K45: 0 | L45: 0 | M45: 0 | N45: =+N43+N44 -> 0
B46: 14. DIFERENCIA (SI HAY VALOR DIFERENTE A CERO; CORREGIR SALDOS FILAS 43 Y 44) | C46: =+C11-C45 -> 0 | D46: 0 | E46: 0 | F46: 0 | G46: 0 | H46: 0 | I46: 0 | J46: 0 | K46: 0 | L46: 0 | M46: 0 | N46: =+N11-N45 -> 0
B48: 15. PORCENTAJE DE COBERTURA EN TASA DE CAMBIO | C48: 0.18253 | D48: 0.18253 | E48: 0.18253 | F48: 0.18253 | G48: 0.18253 | H48: 0.18253 | I48: 0.18253 | J48: 0.18253 | K48: 0.18253 | L48: 0.18253 | M48: 0.18253 | N48: 0.18253
B49: 16. TASA REPRESENTATIVA DE MERCADO ESTRESADA | C49: =C41*(1+C48) -> 4420.553245 | D49: =D41*(1+D48) -> 4427.22541 | E49: 4520.197143 | F49: 4615.121283 | G49: 4712.03883 | H49: 4810.991646 | I49: 4912.02247 | J49: 5015.174942 | K49: 5120.493616 | L49: 5228.023982 | M49: 5337.812486 | N49: =N41*(1+N48) -> 5449.906548
B50: 17. SALDO DE LA DEUDA EXTERNA CON COBERTURA DE RIESGO EN TASA DE CAMBIO | C50: =(+C43/C41)*C49 -> 0 | D50: =(+D43/D41)*D49 -> 0 | E50: 0 | F50: 0 | G50: 0 | H50: 0 | I50: 0 | J50: 0 | K50: 0 | L50: 0 | M50: 0 | N50: =(+N43/N41)*N49 -> 0
B51: 18. SALDO DE LA DEUDA TOTAL CON COBERTURA DE RIESGO EN TASA DE CAMBIO | C51: =+C44+C50 -> 0 | D51: =+D44+D50 -> 0 | E51: 0 | F51: 0 | G51: 0 | H51: 0 | I51: 0 | J51: 0 | K51: 0 | L51: 0 | M51: 0 | N51: =+N44+N50 -> 0
B52: 19. DIFERENCIA EN SALDO POR COBERTURA | C52: =+C51-C45 -> 0 | D52: =+D51-D45 -> 0 | E52: 0 | F52: 0 | G52: 0 | H52: 0 | I52: 0 | J52: 0 | K52: 0 | L52: 0 | M52: 0 | N52: =+N51-N45 -> 0
